Workbook

Sheet BExRepositorySheet (hidden)
A1: 7

Sheet Ingresos
A3: EMPRESA DE ACUEDUCTO ALCANTARILLADO DE BOGOTA
A4: EJECUCION PRESUPUESTAL DE INGRESOS
A5: A 31 DE AGOSTO DE 2019
C6: 1 | D6: 2 | E6: 3 | F6: 4 | G6: 5 | H6: 6 | I6: 7=(6/4) | J6: 8=(4-6)
A7: CODIGO SECRETARIA DE HACIENDA | B7: RUBRO | C7: PRESUPUESTO INICIAL | D7: MODIFICACIONES MES | E7: MODIFICACIONES ACUMULADAS | F7: PRESUPUESTO DEFINITIVO | G7: RECAUDOS MES | H7: RECAUDOS ACUMULADOS | I7: % EJEC PPTAL | J7: SALDO POR RECAUDAR
A8: TOTAL INGRESOS + DISPONIBILIDAD INICIAL | C8: 5419077626000 | E8: 306843335701 | F8: 5725920961701 | G8: 165543112070 | H8: 2493852464742 | I8: 0.435537354 | J8: 3232068496959
A9: 310000000000000 | B9: DISPONIBILIDAD INICIAL | C9: 813719123000 | E9: 272051141955 | F9: 1085770264955 | H9: 1085764117842 | I9: 0.9999943385 | J9: 6147113
A10: 310000000000000 | B10: DISPONIBILIDAD INICIAL | C10: 813719123000 | E10: 272051141955 | F10: 1085770264955 | H10: 1085764117842 | I10: 0.9999943385 | J10: 6147113
A11: 320000000000000 | B11: INGRESOS | C11: 4605358503000 | E11: 34792193746 | F11: 4640150696746 | G11: 165543112070 | H11: 1408088346900 | I11: 0.3034574605 | J11: 3232062349846
A12: 321000000000000 | B12: INGRESOS CORRIENTES | C12: 2165376401000 | E12: -476 | F12: 2165376400524 | G12: 136462447249 | H12: 1182790386577 | I12: 0.5462285385 | J12: 982586013947
A13: 321010000000000 | B13: INGRESOS DE EXPLOTACION | C13: 1758896574000 | F13: 1758896574000 | G13: 136054389963 | H13: 1170066237746 | I13: 0.6652274244 | J13: 588830336254
A14: 321010200000000 | B14: VENTA DE SERVICIOS | C14: 1733463321000 | F14: 1733463321000 | G14: 134088438159 | H14: 1152864644975 | I14: 0.6650643432 | J14: 580598676025
A15: 321010201000000 | B15: SERVICIO ACUEDUCTO | C15: 944794737000 | F15: 944794737000 | G15: 71360131633 | H15: 595039851557 | I15: 0.629808601 | J15: 349754885443
A16: 321010202000000 | B16: SERVICIO ALCANTARILLADO | C16: 788668584000 | F16: 788668584000 | G16: 62728306526 | H16: 556356667482 | I16: 0.7054378465 | J16: 232311916518
A17: 321010203000000 | B17: SERVICIO ASEO | H17: 1468125936 | J17: -1468125936
A18: 321019900000000 | B18: OTROS INGRESOS DE EXPLOTACION | C18: 25433253000 | F18: 25433253000 | G18: 1965951804 | H18: 17201592771 | I18: 0.6763426122 | J18: 8231660229
A19: 321019902000000 | B19: INTERESES A USUARIOS | C19: 2900648000 | F19: 2900648000 | G19: 340140382 | H19: 2755800121 | I19: 0.9500636137 | J19: 144847879
A20: 321019903000000 | B20: PUBLICACIONES | C20: 5700000 | F20: 5700000 | G20: 1554206 | H20: 20924646 | I20: 3.670990526 | J20: -15224646
A21: 321019904000000 | B21: SERVICIOS | C21: 639109000 | F21: 639109000 | G21: 1380670 | H21: 186775679 | I21: 0.2922438567 | J21: 452333321
A22: 321019905000000 | B22: CUOTAS PARTES PENSIONALES | G22: 108461567 | H22: 1169010694 | J22: -1169010694
A23: 321019906000000 | B23: EXTRAORDINARIOS RECUPERACIÓN | G23: 810568415 | H23: 4148104302 | J23: -4148104302
A24: 321019907000000 | B24: INGRESOS CENTRAL HIDROELÉCTRICA | C24: 11085124000 | F24: 11085124000 | H24: 2313375314 | I24: 0.2086918752 | J24: 8771748686
A25: 321019908000000 | B25: SANCIONES Y MULTAS | G25: 50775516 | H25: 189846036 | J25: -189846036
A26: 321019909000000 | B26: COMISIONES | C26: 10802672000 | F26: 10802672000 | G26: 653071048 | H26: 6417755979 | I26: 0.5940896825 | J26: 4384916021
A27: 321020000000000 | B27: OTROS INGRESOS CORRIENTES | C27: 406479827000 | E27: -476 | F27: 406479826524 | G27: 408057286 | H27: 12724148831 | I27: 0.03130327264 | J27: 393755677693
A28: 321020100000000 | B28: RENTAS CONTRACTUALES | C28: 406479827000 | E28: -476 | F28: 406479826524 | G28: 408057286 | H28: 12724148831 | I28: 0.03130327264 | J28: 393755677693
A29: 321020199000000 | B29: OTRAS RENTAS CONTRACTUALES | C29: 406479827000 | E29: -476 | F29: 406479826524 | G29: 408057286 | H29: 12724148831 | I29: 0.03130327264 | J29: 393755677693
A30: 322000000000000 | B30: TRANSFERENCIAS | C30: 239567781000 | E30: 25315303810 | F30: 264883084810 | G30: 18144797644 | H30: 87728587735 | I30: 0.3311973953 | J30: 177154497075
A31: 322030000000000 | B31: MUNICIPIOS | C31: 1601000000 | F31: 1601000000 | H31: 1277883968 | I31: 0.7981786184 | J31: 323116032
A32: 322030000000000 | B32: MUNICIPIOS | C32: 1601000000 | F32: 1601000000 | H32: 1277883968 | I32: 0.7981786184 | J32: 323116032
A33: 322040000000000 | B33: ADMINISTRACION CENTRAL | C33: 237966781000 | E33: 25315303810 | F33: 263282084810 | G33: 18144797644 | H33: 86450703767 | I33: 0.328357715 | J33: 176831381043
A34: 322040300000000 | B34: SECRETARIA DISTRITAL DE HACIENDA | C34: 81747001000 | E34: 1277125638 | F34: 83024126638 | G34: 18144797644 | H34: 20644797644 | I34: 0.2486602206 | J34: 62379328994
A35: 322040500000000 | B35: SDH - MÍNIMO VITAL | C35: 71465000000 | F35: 71465000000 | H35: 33251265951 | I35: 0.4652804303 | J35: 38213734049
A36: 322040600000000 | B36: SDH - LEY 99 DE 1993 | C36: 84754780000 | F36: 84754780000 | J36: 84754780000
A37: 322040800000000 | B37: LEY 99 DE 1993, SUBSIDIOS Y MÍNIMO VITAL - VIGENCIA ANTERIOR | E37: 24038178172 | F37: 24038178172 | H37: 32554640172 | I37: 1.354288996 | J37: -8516462000
A38: 323000000000000 | B38: RECURSOS DE CAPITAL | C38: 2200414321000 | E38: 9476890412 | F38: 2209891211412 | G38: 10935867177 | H38: 137569372588 | I38: 0.06225164926 | J38: 2072321838824
A39: 323010000000000 | B39: RECURSOS DEL CREDITO | C39: 1976633221000 | E39: 7134971405 | F39: 1983768192405 | J39: 1983768192405
A40: 323010100000000 | B40: CREDITO INTERNO | C40: 1976633221000 | E40: 7134971405 | F40: 1983768192405 | J40: 1983768192405
A41: 323010101000000 | B41: VIGENCIA | C41: 1976633221000 | E41: 7134971405 | F41: 1983768192405 | J41: 1983768192405
A42: 323020000000000 | B42: RENDIMIENTOS POR OPERACIONES FINANCIERAS | C42: 73532847000 | F42: 73532847000 | G42: 10498990814 | H42: 97644283521 | I42: 1.327900217 | J42: -24111436521
A43: 323020000000000 | B43: RENDIMIENTOS POR OPERACIONES FINANCIERAS | C43: 73532847000 | F43: 73532847000 | G43: 10498990814 | H43: 97644283521 | I43: 1.327900217 | J43: -24111436521
A44: 323090000000000 | B44: OTROS RECURSOS DE CAPITAL | C44: 150248253000 | E44: 2341919007 | F44: 152590172007 | G44: 436876363 | H44: 39925089067 | I44: 0.2616491517 | J44: 112665082940
A45: 323090100000000 | B45: RECUPERACION PRESTAMOS - BIENESTAR | C45: 15650001000 | F45: 15650001000 | G45: 436876363 | H45: 6623390357 | I45: 0.4232198041 | J45: 9026610643
A46: 323090200000000 | B46: INDEMNIZACIONES COMPAÑIAS DE SEGURO | H46: 337821166 | J46: -337821166
A47: 323090300000000 | B47: RECURSOS FIDUCIA | C47: 103976295000 | E47: -1537 | F47: 103976293463 | J47: 103976293463
A48: 323099900000000 | B48: OTROS | C48: 30621957000 | E48: 2341920544 | F48: 32963877544 | H48: 32963877544 | I48: 1

Sheet Gastos
A2: EMPRESA DE ACUEDUCTO ALCANTARILLADO DE BOGOTA
A3: EJECUCION PRESUPUESTAL DE GASTOS
A4: A 31 AGOSTO DEL 2019 | C4: 1 | D4: 2 | E4: 3 | F4: 4=(1+3) | G4: 5 | H4: 6=(4-5) | I4: 7 | J4: 8 | K4: 9=(8/6) | L4: 11 | M4: 12 | N4: 13=(12/6)
A5: CODIGO SECRETARIA DE HACIENDA | B5: RUBRO | C5: PRESUPUESTO INICIAL | D5: MODIFICACIONES MES | E5: MODIFICACIONES ACUMULADAS | F5: PRESUPUESTO DEFINITIVO | G5: SUSPENSION | H5: APROPIACION DISPONIBLE | I5: COMPROMISOS MES | J5: COMPROMISOS ACUMULADOS | K5: % EJEC PPTAL | L5: AUTORIZACIONES DE GIRO | N5: % EJEC AUT. GIRO
L6: MES | M6: ACUMULADO
A7: TOTAL GASTOS + DISPONIBILIDAD FINAL | C7: 5419077626000 | E7: 306843335701 | F7: 5725920961701 | H7: 5725920961701 | I7: 108979822457 | J7: 2748840279029 | K7: 0.4800695464 | L7: 129387361930 | M7: 1325577308700 | N7: 0.2315046466
A8: 330000000000000 | B8: GASTOS | C8: 5180526062000 | E8: 118974927264 | F8: 5299500989264 | H8: 5299500989264 | I8: 108979822457 | J8: 2748840279029 | K8: 0.5186979462 | L8: 129387361930 | M8: 1325577308700 | N8: 0.2501324769
A9: 331000000000000 | B9: GASTOS DE FUNCIONAMIENTO | C9: 1291563643000 | E9: 67092561782 | F9: 1358656204782 | H9: 1358656204782 | I9: 56467275198 | J9: 982624148057 | K9: 0.7232323708 | L9: 66744425205 | M9: 745925863964 | N9: 0.5490173757
A10: 331010000000000 | B10: SERVICIOS PERSONALES | C10: 358789399000 | D10: 35635967 | E10: 3536112140 | F10: 362325511140 | H10: 362325511140 | I10: 19903278706 | J10: 231763295619 | K10: 0.6396549194 | L10: 23447529973 | M10: 199584789981 | N10: 0.5508438789
A11: 331010100000000 | B11: SERVICIOS PERSONALES ASOCIADOS A LA NOMINA | C11: 225857398000 | E11: 299078879 | F11: 226156476879 | H11: 226156476879 | I11: 14144734947 | J11: 136879836874 | K11: 0.6052439389 | L11: 14136453787 | M11: 136871372766 | N11: 0.605206513
A12: 331010101000000 | B12: SUELDOS PERSONAL DE NOMINA | C12: 126490927000 | E12: 145583526 | F12: 126636510526 | H12: 126636510526 | I12: 9795061237 | J12: 79699739474 | K12: 0.6293583039 | L12: 9795061237 | M12: 79699739474 | N12: 0.6293583039
A13: 331010102000000 | B13: GASTOS DE REPRESENTACION | C13: 75042000 | F13: 75042000 | H13: 75042000
A14: 331010103000000 | B14: HORAS EXTRAS, DOMINICALES, FESTIVOS, RECARGO NOCTURNO | C14: 16278640000 | F14: 16278640000 | H14: 16278640000 | I14: 1901455267 | J14: 12562071346 | K14: 0.7716904696 | L14: 1901455267 | M14: 12562071346 | N14: 0.7716904696
A15: 331010104000000 | B15: SUBSIDIO DE TRANSPORTE | C15: 1968514000 | F15: 1968514000 | H15: 1968514000 | I15: 104097273 | J15: 833041418 | K15: 0.423182877 | L15: 104097273 | M15: 833041418 | N15: 0.423182877
A16: 331010105000000 | B16: SUBSIDIO DE ALIMENTACION | C16: 9532780000 | F16: 9532780000 | H16: 9532780000 | I16: 685890390 | J16: 5870473096 | K16: 0.6158196346 | L16: 685890390 | M16: 5870473096 | N16: 0.6158196346
A17: 331010106000000 | B17: BONIFICACION POR SERVICIOS PRESTADOS | C17: 437010000 | F17: 437010000 | H17: 437010000 | I17: 7089107 | J17: 128160352 | K17: 0.2932664058 | L17: 7089107 | M17: 128160352 | N17: 0.2932664058
A18: 331010107000000 | B18: PRIMA SEMESTRAL | C18: 15809419000 | E18: 46745094 | F18: 15856164094 | H18: 15856164094 | I18: 3241222 | J18: 15480693901 | K18: 0.9763202379 | L18: 3241222 | M18: 15480693901 | N18: 0.9763202379
A19: 331010109000000 | B19: PRIMA DE NAVIDAD | C19: 16154480000 | E19: 23524325 | F19: 16178004325 | H19: 16178004325 | I19: 27122771 | J19: 146485227 | K19: 0.009054591905 | L19: 27122771 | M19: 146485227 | N19: 0.009054591905
A20: 331010110000000 | B20: PRIMA DE VACACIONES | C20: 17654651000 | E20: 15176975 | F20: 17669827975 | H20: 17669827975 | I20: 583036365 | J20: 10004416859 | K20: 0.5661864322 | L20: 583036365 | M20: 10004416859 | N20: 0.5661864322
A21: 331010111000000 | B21: PRIMA TECNICA | C21: 4209393000 | E21: 68048959 | F21: 4277441959 | H21: 4277441959 | I21: 340941704 | J21: 2609211839 | K21: 0.6099935111 | L21: 340941704 | M21: 2609211839 | N21: 0.6099935111
A22: 331010112000000 | B22: OTRAS PRIMAS Y BONIFICACIONES | C22: 10407642000 | F22: 10407642000 | H22: 10407642000 | I22: 235818008 | J22: 5776594097 | K22: 0.5550338969 | L22: 227536848 | M22: 5768129989 | N22: 0.554220638
A23: 331010114000000 | B23: QUINQUENIO | C23: 6155108000 | F23: 6155108000 | H23: 6155108000 | I23: 439657616 | J23: 3337500829 | K23: 0.5422326999 | L23: 439657616 | M23: 3337500829 | N23: 0.5422326999
A24: 331010115000000 | B24: INDEMNIZACIONES LABORALES | C24: 100000000 | F24: 100000000 | H24: 100000000
A25: 331010116000000 | B25: CONVENCIONES COLECTIVAS O CONVENIOS | C25: 583792000 | F25: 583792000 | H25: 583792000 | I25: 21323987 | J25: 431448436 | K25: 0.7390447899 | L25: 21323987 | M25: 431448436 | N25: 0.7390447899
A26: 331010200000000 | B26: SERVICIOS PERSONALES INDIRECTOS | C26: 67383543000 | D26: 35635967 | E26: 3237033261 | F26: 70620576261 | H26: 70620576261 | I26: 1286084598 | J26: 50261483565 | K26: 0.7117116034 | L26: 4818761488 | M26: 22284793108 | N26: 0.3155566591
A27: 331010203000000 | B27: HONORARIOS EMPRESA | C27: 54909345000 | D27: 35635967 | E27: 3612033261 | F27: 58521378261 | H27: 58521378261 | I27: 1026827606 | J27: 47142581854 | K27: 0.8055617153 | L27: 4475284996 | M27: 19612272048 | N27: 0.3351300436
A28: 331010204000000 | B28: REMUNERACION SERVICIOS TECNICOS | C28: 1568517000 | E28: -375000000 | F28: 1193517000 | H28: 1193517000 | I28: -14662500 | J28: 805458442 | K28: 0.6748613065 | L28: 69557000 | M28: 359077791 | N28: 0.3008568717
A29: 331010299000000 | B29: OTROS GASTOS DE PERSONAL | C29: 10905681000 | F29: 10905681000 | H29: 10905681000 | I29: 273919492 | J29: 2313443269 | K29: 0.2121319401 | L29: 273919492 | M29: 2313443269 | N29: 0.2121319401
A30: 331010300000000 | B30: APORTES PATRONALES AL SECTOR PRIVADO Y PUBLICO | C30: 65548458000 | F30: 65548458000 | H30: 65548458000 | I30: 4472459161 | J30: 44621975180 | K30: 0.6807479007 | L30: 4492314698 | M30: 40428624107 | N30: 0.6167746022
A31: 331010301000000 | B31: APORTES PATRONALES AL SECTOR PRIVADO | C31: 58397668000 | E31: -14458186868 | F31: 43939481132 | H31: 43939481132 | I31: 3086927415 | J31: 30684813172 | K31: 0.6983426381 | L31: 3101133874 | M31: 27757830248 | N31: 0.6317286762
A32: 331010301010000 | B32: CESANTÍAS FONDOS PRIVADOS | C32: 7625219000 | E32: -2380000000 | F32: 5245219000 | H32: 5245219000 | J32: 5082890907 | K32: 0.9690521801 | M32: 5082890907 | N32: 0.9690521801
A33: 331010301020000 | B33: PENSIONES FONDOS PRIVADOS | C33: 21171531000 | E33: -11478186868 | F33: 9693344132 | H33: 9693344132 | I33: 654668944 | J33: 5205739226 | K33: 0.5370426506 | L33: 637081252 | M33: 4546153854 | N33: 0.468997468
A34: 331010301030000 | B34: SALUD EPS PRIVADAS | C34: 20828865000 | E34: -600000000 | F34: 20228865000 | H34: 20228865000 | I34: 1877033071 | J34: 15354934727 | K34: 0.759060616 | L34: 1895154322 | M34: 13620471575 | N34: 0.6733186254
A35: 331010301050000 | B35: CAJA DE COMPENSACION | C35: 8772053000 | F35: 8772053000 | H35: 8772053000 | I35: 555225400 | J35: 5041248312 | K35: 0.5746942377 | L35: 568898300 | M35: 4508313912 | N35: 0.5139405692
A36: 331010302000000 | B36: APORTES PATRONALES AL SECTOR PUBLICO | C36: 7150790000 | E36: 14458186868 | F36: 21608976868 | H36: 21608976868 | I36: 1385531746 | J36: 13937162008 | K36: 0.6449709347 | L36: 1391180824 | M36: 12670793859 | N36: 0.5863671351
A37: 331010302010000 | B37: CESANTIAS FONDOS PÚBLICOS | E37: 2380000000 | F37: 2380000000 | H37: 2380000000 | J37: 2285717049 | K37: 0.9603853147 | M37: 2285717049 | N37: 0.9603853147
A38: 331010302020000 | B38: PENSIONES FONDOS PÚBLICOS | E38: 11478186868 | F38: 11478186868 | H38: 11478186868 | I38: 1038661405 | J38: 7702189524 | K38: 0.6710284135 | L38: 1004916826 | M38: 6811312126 | N38: 0.5934135944
A39: 331010302030000 | B39: SALUD EPS PUBLICOS | E39: 600000000 | F39: 600000000 | H39: 600000000 | I39: 21817741 | J39: 195236635 | K39: 0.3253943917 | L39: 22950598 | M39: 173125284 | N39: 0.28854214
A40: 331010302040000 | B40: RIESGOS PROFESIONALES SECTOR PUBLICO | C40: 2124180000 | F40: 2124180000 | H40: 2124180000 | I40: 210675900 | J40: 1554616800 | K40: 0.7318667909 | L40: 187759800 | M40: 1341266600 | N40: 0.6314279393
A41: 331010302050000 | B41: ICBF | C41: 3036439000 | F41: 3036439000 | H41: 3036439000 | I41: 68623900 | J41: 1319834900 | K41: 0.4346653761 | L41: 105329500 | M41: 1235585300 | N41: 0.4069191905
A42: 331010302060000 | B42: SENA | C42: 1990171000 | F42: 1990171000 | H42: 1990171000 | I42: 45752800 | J42: 879567100 | K42: 0.4419555405 | L42: 70224100 | M42: 823787500 | N42: 0.4139279992
A43: 331020000000000 | B43: GASTOS GENERALES | C43: 500514708000 | D43: -35635967 | E43: 9892840047 | F43: 510407548047 | H43: 510407548047 | I43: 17206317984 | J43: 364965982977 | K43: 0.7150481696 | L43: 16907062103 | M43: 262425089589 | N43: 0.5141481363
A44: 331020100000000 | B44: ADQUISICION DE BIENES | C44: 48492183000 | E44: 1826350188 | F44: 50318533188 | H44: 50318533188 | I44: 1941214245 | J44: 28256782949 | K44: 0.5615581608 | L44: 1257025604 | M44: 14052647489 | N44: 0.2792737904
A45: 331020101000000 | B45: DOTACION | C45: 3286323000 | E45: -51779236 | F45: 3234543764 | H45: 3234543764 | I45: 808906453 | J45: 1955819246 | K45: 0.6046661875 | L45: 97475 | M45: 532764325 | N45: 0.1647108105
A46: 331020102000000 | B46: MATERIALES Y SUMINISTROS | C46: 11871646000 | E46: 975002917 | F46: 12846648917 | H46: 12846648917 | I46: 1132307792 | J46: 7213058606 | K46: 0.5614739418 | L46: 114442123 | M46: 1643380366 | N46: 0.127922883
A47: 331020103000000 | B47: GASTOS DE COMPUTADOR | C47: 29306737000 | E47: 896975973 | F47: 30203712973 | H47: 30203712973 | J47: 15478266456 | K47: 0.5124623741 | L47: 874005854 | M47: 10986891034 | N47: 0.363759616
A48: 331020104000000 | B48: COMBUSTIBLES, LUBRICANTES Y LLANTAS | C48: 4027477000 | E48: 6150534 | F48: 4033627534 | H48: 4033627534 | J48: 3609638641 | K48: 0.8948864541 | L48: 268480152 | M48: 889611764 | N48: 0.2205488128
A49: 331020200000000 | B49: ADQUISICION DE SERVICIOS | C49: 168488698000 | E49: -4644684968 | F49: 163844013032 | H49: 163844013032 | I49: 4827475186 | J49: 116498209775 | K49: 0.7110312279 | L49: 7068085236 | M49: 41636323435 | N49: 0.2541217263
A50: 331020201000000 | B50: VIATICOS Y GASTOS DE VIAJE | C50: 1178098000 | F50: 1178098000 | H50: 1178098000 | I50: 25992471 | J50: 400902311 | K50: 0.3402962326 | L50: 66089746 | M50: 338326540 | N50: 0.2871803025
A51: 331020202000000 | B51: GASTOS DE TRANSPORTE Y COMUNICACIÓN | C51: 15506533000 | E51: -52279900 | F51: 15454253100 | H51: 15454253100 | I51: 298400786 | J51: 13301904302 | K51: 0.8607277373 | L51: 1082930529 | M51: 5612111562 | N51: 0.3631435001
A52: 331020203000000 | B52: IMPRESOS Y PUBLICACIONES | C52: 824609000 | E52: -84305580 | F52: 740303420 | H52: 740303420 | I52: 478645 | J52: 182569227 | K52: 0.2466140532 | L52: 3777325 | M52: 76452507 | N52: 0.1032718544
A53: 331020204000000 | B53: MANTENIMIENTO Y REPARACIONES | C53: 82189005000 | E53: -4321085695 | F53: 77867919305 | H53: 77867919305 | I53: 4030786508 | J53: 51973929162 | K53: 0.6674626679 | L53: 4249753111 | M53: 15347213602 | N53: 0.1970928945
A54: 331020205000000 | B54: ARRENDAMIENTOS | C54: 12050191000 | E54: 80000000 | F54: 12130191000 | H54: 12130191000 | I54: 144056625 | J54: 10536432459 | K54: 0.8686122468 | L54: 303179374 | M54: 2546022961 | N54: 0.2098914156
A55: 331020206000000 | B55: SEGUROS | C55: 29125848000 | F55: 29125848000 | H55: 29125848000 | I55: 21031600 | J55: 19804167944 | K55: 0.6799516342 | L55: 23281198 | M55: 13271055641 | N55: 0.4556452963
A56: 331020207000000 | B56: SUMINISTRO DE ALIMENTOS | C56: 4903521000 | E56: -500000000 | F56: 4403521000 | H56: 4403521000 | I56: -80620853 | J56: 3323353107 | K56: 0.7547035899 | L56: 504861179 | M56: 602164863 | N56: 0.1367462226
A57: 331020208000000 | B57: SERVICIOS PUBLICOS | C57: 5865650000 | F57: 5865650000 | H57: 5865650000 | I57: 95386404 | J57: 5171287232 | K57: 0.8816221957 | L57: 426442045 | M57: 2563081803 | N57: 0.4369646677
A58: 331020209000000 | B58: CAPACITACION | C58: 900000000 | E58: -3124968 | F58: 896875032 | H58: 896875032 | I58: 4296000 | J58: 676310872 | K58: 0.754074813 | L58: 91748959 | M58: 181994867 | N58: 0.2029210988
A59: 331020210000000 | B59: BIENESTAR E INCENTIVOS | C59: 4693616000 | E59: 153722082 | F59: 4847338082 | H59: 4847338082 | J59: 3999963004 | K59: 0.8251875434 | L59: 14451685 | M59: 14451685 | N59: 0.002981365186
A60: 331020211000000 | B60: PROMOCION INSTITUCIONAL | C60: 6731186000 | E60: -12146250 | F60: 6719039750 | H60: 6719039750 | I60: 229839000 | J60: 3584704020 | K60: 0.5335143344 | L60: 238454984 | M60: 615973943 | N60: 0.0916758891
A61: 331020212000000 | B61: INTERESES Y COMISIONES | C61: 3011310000 | F61: 3011310000 | H61: 3011310000 | J61: 2723789171 | K61: 0.9045196845 | L61: 12133971 | M61: 56188341 | N61: 0.01865910218
A62: 331020213000000 | B62: SALUD OCUPACIONAL | C62: 1367131000 | E62: 94535343 | F62: 1461666343 | H62: 1461666343 | I62: 57828000 | J62: 677294964 | K62: 0.4633717998 | L62: 50981130 | M62: 269683120 | N62: 0.1845038858
A63: 331020214000000 | B63: PROGRAMAS Y CONVENIOS INSTITUCIONES | C63: 142000000 | F63: 142000000 | H63: 142000000 | J63: 141602000 | K63: 0.9971971831 | M63: 141602000 | N63: 0.9971971831
A64: 331020300000000 | B64: OTROS GASTOS GENERALES | C64: 283533827000 | D64: -35635967 | E64: 12711174827 | F64: 296245001827 | H64: 296245001827 | I64: 10437628553 | J64: 220210990253 | K64: 0.7433407784 | L64: 8581951263 | M64: 206736118665 | N64: 0.6978552124
A65: 331020301000000 | B65: IMPUESTOS, TASAS Y MULTAS | C65: 266871794000 | D65: 1487384119 | E65: 7310361113 | F65: 274182155113 | H65: 274182155113 | I65: 10116810220 | J65: 211755630619 | K65: 0.7723173324 | L65: 7916464779 | M65: 202103143950 | N65: 0.7371126829
A66: 331020302000000 | B66: SENTENCIAS JUDICIALES | C66: 750000000 | F66: 750000000 | H66: 750000000 | J66: 17724014 | K66: 0.02363201867 | M66: 17724014 | N66: 0.02363201867
A67: 331020399000000 | B67: OTROS GASTOS GENERALES | C67: 15912033000 | D67: -1523020086 | E67: 5400813714 | F67: 21312846714 | H67: 21312846714 | I67: 320818333 | J67: 8437635620 | K67: 0.3958943511 | L67: 665486484 | M67: 4615250701 | N67: 0.2165478297
A68: 331030000000000 | B68: TRANSFERENCIAS CORRIENTES | C68: 312085533000 | E68: 4578427895 | F68: 316663960895 | H68: 316663960895 | I68: 19600532308 | J68: 219531731829 | K68: 0.6932640241 | L68: 19515271000 | M68: 157770000776 | N68: 0.4982253122
A69: 331030300000000 | B69: TRANSFERENCIAS DE PREVISION Y SEGURIDAD SOCIAL | C69: 311435532000 | E69: 4348077298 | F69: 315783609298 | H69: 315783609298 | I69: 19600532308 | J69: 219362869863 | K69: 0.6946619882 | L69: 19515271000 | M69: 157601138810 | N69: 0.4990795411
A70: 331030301000000 | B70: PENSIONES Y JUBILACIONES | C70: 199914405000 | E70: -299078879 | F70: 199615326121 | H70: 199615326121 | I70: 13318511693 | J70: 120098944824 | K70: 0.601651923 | L70: 13351619789 | M70: 119827708002 | N70: 0.6002931254
A71: 331030302000000 | B71: CESANTIAS | C71: 17646342000 | F71: 17646342000 | H71: 17646342000 | I71: 1016210339 | J71: 7766869893 | K71: 0.4401405058 | L71: 1016210339 | M71: 7762816893 | N71: 0.4399108264
A72: 331030303000000 | B72: OTRAS TRANSFERENCIAS DE PREVISION SOCIAL | C72: 93874785000 | E72: 4647156177 | F72: 98521941177 | H72: 98521941177 | I72: 5265810276 | J72: 91497055146 | K72: 0.928697243 | L72: 5147440872 | M72: 30010613915 | N72: 0.3046084309
A73: 331030303010000 | B73: FONDO DE VIVIENDA | C73: 29566811000 | E73: 4647156177 | F73: 34213967177 | H73: 34213967177 | I73: 5181127476 | J73: 27750699592 | K73: 0.8110927169 | L73: 655212258 | M73: 14819096734 | N73: 0.433130033
A74: 331030303020000 | B74: PAGOS SERVICIOS MEDICOS CONVENCIONALES | C74: 64307974000 | F74: 64307974000 | H74: 64307974000 | I74: 84682800 | J74: 63746355554 | K74: 0.9912667371 | L74: 4492228614 | M74: 15191517181 | N74: 0.2362306917
A75: 331030400000000 | B75: OTRAS TRANSFERENCIAS | C75: 650001000 | E75: 230350597 | F75: 880351597 | H75: 880351597 | J75: 168861966 | K75: 0.1918119608 | M75: 168861966 | N75: 0.1918119608
A76: 331030401000000 | B76: DESTINATARIOS DE OTRAS TRANSFERENCIAS | C76: 650001000 | E76: 230350597 | F76: 880351597 | H76: 880351597 | J76: 168861966 | K76: 0.1918119608 | M76: 168861966 | N76: 0.1918119608
A77: 331040000000000 | B77: CUENTAS POR PAGAR FUNCIONAMIENTO | C77: 120174003000 | E77: 49085181700 | F77: 169259184700 | H77: 169259184700 | I77: -242853800 | J77: 166363137632 | K77: 0.9828898676 | L77: 6874562129 | M77: 126145983618 | N77: 0.7452829449
A78: 331040000000000 | B78: CUENTAS POR PAGAR | C78: 120174003000 | E78: 49085181700 | F78: 169259184700 | H78: 169259184700 | I78: -242853800 | J78: 166363137632 | K78: 0.9828898676 | L78: 6874562129 | M78: 126145983618 | N78: 0.7452829449
A79: 332000000000000 | B79: GASTOS DE OPERACION | C79: 317492682000 | E79: 23763704174 | F79: 341256386174 | H79: 341256386174 | I79: 21808398112 | J79: 262180817165 | K79: 0.7682810573 | L79: 17549451834 | M79: 114987932098 | N79: 0.3369546674
A80: 332010000000000 | B80: GASTOS DE COMERCIALIZACION | C80: 122590042000 | E80: 1920635986 | F80: 124510677986 | H80: 124510677986 | I80: 13741625390 | J80: 67298564768 | K80: 0.5405043636 | L80: 4117350242 | M80: 11758831199 | N80: 0.0944403435
A81: 332010100000000 | B81: COMPRA DE BIENES PARA LA VENTA | C81: 4000000000 | F81: 4000000000 | H81: 4000000000 | J81: 3999999580 | K81: 0.999999895
A82: 332010101000000 | B82: MEDIDORES | C82: 4000000000 | F82: 4000000000 | H82: 4000000000 | J82: 3999999580 | K82: 0.999999895
A83: 332010200000000 | B83: COMPRA DE SERVICIOS PARA LA VENTA | C83: 10638855000 | E83: 1009779187 | F83: 11648634187 | H83: 11648634187 | I83: 6180000197 | J83: 10780115129 | K83: 0.9254402667 | L83: 42701820 | M83: 699489403 | N83: 0.06004904882
A84: 332010201000000 | B84: GESTION COMERCIAL | C84: 10638855000 | E84: 381552483 | F84: 11020407483 | H84: 11020407483 | I84: 6180000197 | J84: 10151888425 | K84: 0.9211899325 | M84: 381645027 | N84: 0.03463075459
A85: 332010204000000 | B85: PROCESO DE ASEO | E85: 628226704 | F85: 628226704 | H85: 628226704 | J85: 628226704 | K85: 1 | L85: 42701820 | M85: 317844376 | N85: 0.5059389771
A86: 332010500000000 | B86: OTROS GASTOS DE COMERCIALIZACION | C86: 107951187000 | E86: 910856799 | F86: 108862043799 | H86: 108862043799 | I86: 7561625193 | J86: 52518450059 | K86: 0.4824312334 | L86: 4074648422 | M86: 11059341796 | N86: 0.1015904296
A87: 332010501000000 | B87: MANTENIMIENTO Y MATERIALES OPERACION INFRAESTRUCTURA | C87: 102301187000 | E87: 546159625 | F87: 102847346625 | H87: 102847346625 | I87: 7561625193 | J87: 52368450059 | K87: 0.5091862044 | L87: 4074648422 | M87: 11044291460 | N87: 0.1073852834
A88: 332010502000000 | B88: COMERCIALIZACION DE ENERGIA | C88: 150000000 | F88: 150000000 | H88: 150000000 | J88: 150000000 | K88: 1 | M88: 15050336 | N88: 0.1003355733
A89: 332010503000000 | B89: FONDO ATENCION EMERGENCIAS | C89: 4000000000 | E89: 364697174 | F89: 4364697174 | H89: 4364697174
A90: 332010504000000 | B90: FONDO OBLIGACIONES CONTIGENTES | C90: 1500000000 | F90: 1500000000 | H90: 1500000000
A91: 332020000000000 | B91: GASTOS DE PRODUCCION | C91: 119951222000 | E91: -927327053 | F91: 119023894947 | H91: 119023894947 | I91: 8257205022 | J91: 98576899723 | K91: 0.8282110056 | L91: 9100467117 | M91: 50061554815 | N91: 0.4206008788
A92: 332020100000000 | B92: INDUSTRIAL | C92: 119951222000 | E92: -927327053 | F92: 119023894947 | H92: 119023894947 | I92: 8257205022 | J92: 98576899723 | K92: 0.8282110056 | L92: 9100467117 | M92: 50061554815 | N92: 0.4206008788
A93: 332020101000000 | B93: COMPRA AGUA EN BLOQUE | C93: 19933196000 | E93: -7929670465 | F93: 12003525535 | H93: 12003525535 | J93: 6835026 | K93: 0.000569418208 | M93: 6835026 | N93: 0.000569418208
A94: 332020102000000 | B94: ENERGIA PARA BOMBEO | C94: 59707405000 | E94: 800000000 | F94: 60507405000 | H94: 60507405000 | J94: 59707405000 | K94: 0.9867784778 | L94: 5827535105 | M94: 33206581907 | N94: 0.5488019509
A95: 332020103000000 | B95: TASA POR USO DE AGUA | C95: 6740115000 | E95: 2165757812 | F95: 8905872812 | H95: 8905872812 | I95: 2773548597 | J95: 5861403278 | K95: 0.6581503466 | L95: 1609104032 | M95: 4696206818 | N95: 0.5273157294
A96: 332020109000000 | B96: PRODUCTOS QUIMICOS | C96: 33570506000 | E96: 4036585600 | F96: 37607091600 | H96: 37607091600 | I96: 5483656425 | J96: 33001256419 | K96: 0.8775274826 | L96: 1663827980 | M96: 12151931064 | N96: 0.3231287118
A97: 332030000000000 | B97: CUENTAS POR PAGAR | C97: 74951418000 | E97: 22770395241 | F97: 97721813241 | H97: 97721813241 | I97: -190432300 | J97: 96305352674 | K97: 0.9855051751 | L97: 4331634475 | M97: 53167546084 | N97: 0.5440704007
A98: 332030000000000 | B98: CUENTAS POR PAGAR | C98: 74951418000 | E98: 22770395241 | F98: 97721813241 | H98: 97721813241 | I98: -190432300 | J98: 96305352674 | K98: 0.9855051751 | L98: 4331634475 | M98: 53167546084 | N98: 0.5440704007
A99: 333000000000000 | B99: SERVICIO DE LA DEUDA | C99: 153572347000 | E99: 303368570 | F99: 153875715570 | H99: 153875715570 | I99: -932331049 | J99: 131889034595 | K99: 0.8571140294 | L99: 4423313951 | M99: 131889034595 | N99: 0.8571140294
A100: 333010000000000 | B100: DEUDA INTERNA | C100: 133333821000 | E100: -4300000000 | F100: 129033821000 | H100: 129033821000 | I100: -1029853049 | J100: 126137407166 | K100: 0.9775530647 | L100: 4325791951 | M100: 126137407166 | N100: 0.9775530647
A101: 333010100000000 | B101: AMORTIZACION | C101: 77404000000 | E101: 37028000000 | F101: 114432000000 | H101: 114432000000 | J101: 114430888888 | K101: 0.9999902902 | M101: 114430888888 | N101: 0.9999902902
A102: 333010200000000 | B102: INTERESES | C102: 55330821000 | E102: -41328000000 | F102: 14002821000 | H102: 14002821000 | I102: -1029853049 | J102: 11706518278 | K102: 0.8360114207 | L102: 4325791951 | M102: 11706518278 | N102: 0.8360114207
A103: 333010300000000 | B103: COMISIONES Y OTROS | C103: 599000000 | F103: 599000000 | H103: 599000000
A104: 333030000000000 | B104: BONOS PENSIONALES | C104: 3427370000 | E104: 4300000000 | F104: 7727370000 | H104: 7727370000 | I104: 97522000 | J104: 5751627429 | K104: 0.7443188859 | L104: 97522000 | M104: 5751627429 | N104: 0.7443188859
A105: 333030000000000 | B105: BONOS PENSIONALES | C105: 3427370000 | E105: 4300000000 | F105: 7727370000 | H105: 7727370000 | I105: 97522000 | J105: 5751627429 | K105: 0.7443188859 | L105: 97522000 | M105: 5751627429 | N105: 0.7443188859
A106: 333040000000000 | B106: CUENTAS POR PAGAR | E106: 2370570 | F106: 2370570 | H106: 2370570
A107: 333040000000000 | B107: CUENTAS POR PAGAR | E107: 2370570 | F107: 2370570 | H107: 2370570
A108: 333050000000000 | B108: PASIVOS CONTINGENTES | C108: 16811156000 | E108: 300998000 | F108: 17112154000 | H108: 17112154000
A109: 333050000000000 | B109: PASIVOS CONTINGENTES | C109: 16811156000 | E109: 300998000 | F109: 17112154000 | H109: 17112154000
A110: 334000000000000 | B110: INVERSION | C110: 3417897390000 | E110: 27815292738 | F110: 3445712682738 | H110: 3445712682738 | I110: 31636480196 | J110: 1372146279212 | K110: 0.3982184255 | L110: 40670170940 | M110: 332774478043 | N110: 0.09657638599
A111: 334010000000000 | B111: DIRECTA | C111: 1783511313000 | D111: -22003694856 | E111: 23639877843 | F111: 1807151190843 | H111: 1807151190843 | I111: 32462278745 | J111: 579501750002 | K111: 0.3206714264 | L111: 6066752932 | M111: 37946561623 | N111: 0.02099800051
A112: 334011500000000 | B112: BOGOTA MEJOR PARA TODOS | C112: 1783511313000 | D112: -22003694856 | E112: 23639877843 | F112: 1807151190843 | H112: 1807151190843 | I112: 32462278745 | J112: 579501750002 | K112: 0.3206714264 | L112: 6066752932 | M112: 37946561623 | N112: 0.02099800051
A113: 334011502000000 | B113: PILAR DEMOCRACIA URBANA | C113: 1590353907000 | D113: -37642432358 | E113: -1106554092 | F113: 1589247352908 | H113: 1589247352908 | I113: 23732899863 | J113: 519387655156 | K113: 0.3268136041 | L113: 5793442115 | M113: 31504023228 | N113: 0.01982323467
A114: 334011502130000 | B114: INFRAESTRUCTURA PARA EL DESARROLLO DEL HABITAT | C114: 1590353907000 | D114: -37642432358 | E114: -1106554092 | F114: 1589247352908 | H114: 1589247352908 | I114: 23732899863 | J114: 519387655156 | K114: 0.3268136041 | L114: 5793442115 | M114: 31504023228 | N114: 0.01982323467
A115: 334011502130133 | B115: INFRAESTRUCTURA PARA EL DESARROLLO DEL HABITAT | C115: 1590353907000 | D115: -37642432358 | E115: -1106554092 | F115: 1589247352908 | H115: 1589247352908 | I115: 23732899863 | J115: 519387655156 | K115: 0.3268136041 | L115: 5793442115 | M115: 31504023228 | N115: 0.01982323467
A116: 334011502130133000019 | B116: CONST. REDES LOCALES SERVICIO DE ALCANTARILLADO PLUVIAL | C116: 46423998000 | D116: 2364924891 | E116: 3339226162 | F116: 49763224162 | H116: 49763224162 | I116: 472751401 | J116: 9365694225 | K116: 0.1882051331 | L116: 232950325 | M116: 522946400 | N116: 0.01050869209
A117: 334011502130133000020 | B117: CONST. REDES LOCALES SERVICIO DE ALCANTARILLADO SANITARIO | C117: 67831563000 | E117: -8572868017 | F117: 59258694983 | H117: 59258694983 | J117: 5316212407 | K117: 0.08971193862 | L117: 166979164 | M117: 265899175 | N117: 0.004487091305
A118: 334011502130133000021 | B118: CONST. SISTEMA TRONCAL Y SECUNDARIO ALCANTARILLADO SANITARIO | C118: 15776019000 | E118: 2284748687 | F118: 18060767687 | H118: 18060767687 | J118: 10535462707 | K118: 0.5833341577 | M118: 84158439 | N118: 0.00465973764
A119: 334011502130133000022 | B119: CONST. SISTEMA TRONCAL Y SECUNDARIO ALCANTARILLADO PLUVIAL | C119: 16877024000 | D119: 1011834972 | E119: 37613112438 | F119: 54490136438 | H119: 54490136438 | J119: 46270095286 | K119: 0.8491462549 | L119: 1372851106 | M119: 10453690275 | N119: 0.1918455515
A120: 334011502130133000050 | B120: REN, REHAB O REP SIST ABAST, DIST MATRIZ Y RED LOCAL AC. | C120: 361732708000 | D120: -44577447000 | E120: -44270755203 | F120: 317461952797 | H120: 317461952797 | I120: 3150162268 | J120: 10838039340 | K120: 0.03413964806 | L120: 219625776 | M120: 4317121000 | N120: 0.0135988611
A121: 334011502130133000051 | B121: REN, REHAB O REP SIST TRONCAL SECUNDARIO Y LOCAL ALC. SANITA | C121: 150553278000 | D121: 1418171110 | E121: -19253221705 | F121: 131300056295 | H121: 131300056295 | I121: 17540826930 | J121: 87685606113 | K121: 0.6678261121 | L121: 762450394 | M121: 3088783741 | N121: 0.02352461856
A122: 334011502130133000052 | B122: REN REHAB O REP SIST TRONCAL SECUNDARIO Y LOCAL ALC. PLUVIAL | C122: 97926991000 | E122: -485185539 | F122: 97441805461 | H122: 97441805461 | I122: 2289307453 | J122: 61123152034 | K122: 0.6272785253 | L122: 668974469 | M122: 2054132512 | N122: 0.02108060808
A123: 334011502130133000053 | B123: REN, REHAB O REP SIST TRONCAL, SECUNDARIO Y LOCAL ALC. COMBI | C123: 28895578000 | E123: 1324836393 | F123: 30220414393 | H123: 30220414393 | J123: 15763742149 | K123: 0.5216256119 | L123: 984465872 | M123: 1693238223 | N123: 0.0560296163
A124: 334011502130133000054 | B124: ACCIONES PARA EL SANEAMIENTO DEL RÍO BOGOTÁ | C124: 85540318000 | D124: 610662508 | E124: 8024474911 | F124: 93564792911 | H124: 93564792911 | I124: 17803465 | J124: 82091036505 | K124: 0.8773710062
A125: 334011502130133000068 | B125: CONST, REN, REHAB O REP REDES ASOCIADAS INFRAESTRUCTURA VIAL | C125: 75000000000 | E125: 23220723538 | F125: 98220723538 | H125: 98220723538 | J125: 737302000 | K125: 0.007506582862 | L125: 49482000 | M125: 167200636 | N125: 0.001702294892
A126: 334011502130133000081 | B126: CORREDORES AMBIENTALES | C126: 354634309000 | D126: 57078930 | E126: 15584194442 | F126: 370218503442 | H126: 370218503442 | I126: 119397154 | J126: 84146216028 | K126: 0.2272879806 | L126: 137944837 | M126: 5640264338 | N126: 0.01523496067
A127: 334011502130133007334 | B127: CONST Y EXPANSIÓN DEL SISTEMA DE ABASTECIMIENTO Y MATRIZ AC. | C127: 249020376000 | D127: -268780863 | E127: -5626228940 | F127: 243394147060 | H127: 243394147060 | I127: 142651192 | J127: 100722415198 | K127: 0.413824311 | L127: 827111905 | M127: 2639679783 | N127: 0.01084528866
A128: 334011502130133007338 | B128: CONSTRUCCIÓN DE REDES LOCALES PARA EL SERVICIO DE ACUEDUCTO | C128: 40141745000 | D128: 1741123094 | E128: -14289611259 | F128: 25852133741 | H128: 25852133741 | J128: 4792681164 | K128: 0.1853882241 | L128: 370606267 | M128: 576908706 | N128: 0.02231570948
A129: 334011506000000 | B129: EJE TRANSV. SOSTENIB. AMBIENTAL BASADA EFICIENCIA ENERGETICA | C129: 94382111000 | D129: 10078271598 | E129: 26707121921 | F129: 121089232921 | H129: 121089232921 | I129: 1957201693 | J129: 50697656787 | K129: 0.4186801383 | L129: 259310818 | M129: 6190226201 | N129: 0.05112119428
A130: 334011506380000 | B130: RECUPERACION Y MANEJO ESTRUCTURA ECOLOGICA PRINCIPAL | C130: 8151000000 | D130: 7441154887 | E130: 22731790344 | F130: 30882790344 | H130: 30882790344 | I130: 1781872669 | J130: 9794760907 | K130: 0.3171591944 | L130: 176966848 | M130: 4627138030 | N130: 0.1498290141
A131: 334011506380177 | B131: CONSOLIDACION DE LA ESTRUCTURA ECOLOGICA PRINCIPAL | C131: 8151000000 | D131: 7441154887 | E131: 22731790344 | F131: 30882790344 | H131: 30882790344 | I131: 1781872669 | J131: 9794760907 | K131: 0.3171591944 | L131: 176966848 | M131: 4627138030 | N131: 0.1498290141
A132: 334011506380177007341 | B132: 7341 - ADEC.HIDRAULICA RECUP.AMB.HUMED,QUEBRADAS,RIOS CUENCA | C132: 8151000000 | D132: 7441154887 | E132: 22731790344 | F132: 30882790344 | H132: 30882790344 | I132: 1781872669 | J132: 9794760907 | K132: 0.3171591944 | L132: 176966848 | M132: 4627138030 | N132: 0.1498290141
A133: 334011506380177007341 | B133: ADECUACIÓN HIDRÁULICA Y RECUPERACIÓN AMBIENTAL DE HUMEDALES, | C133: 8151000000 | D133: 7441154887 | E133: 22731790344 | F133: 30882790344 | H133: 30882790344 | I133: 1781872669 | J133: 9794760907 | K133: 0.3171591944 | L133: 176966848 | M133: 4627138030 | N133: 0.1498290141
A134: 334011506390000 | B134: AMBIENTE SANO PARA LA EQUIDAD Y DISFRUTE DEL CIUDADANO | C134: 86231111000 | D134: 2637116711 | E134: 3975331577 | F134: 90206442577 | H134: 90206442577 | I134: 175329024 | J134: 40902895880 | K134: 0.4534365253 | L134: 82343970 | M134: 1563088171 | N134: 0.0173278995
A135: 334011506390179 | B135: AMBIENTE SANO | C135: 86231111000 | D135: 2637116711 | E135: 3975331577 | F135: 90206442577 | H135: 90206442577 | I135: 175329024 | J135: 40902895880 | K135: 0.4534365253 | L135: 82343970 | M135: 1563088171 | N135: 0.0173278995
A136: 334011506390179000082 | B136: 0082 - PLAN DE SANEAMIENTO Y MANEJO DE VERTIMIENTOS | C136: 86231111000 | D136: 2637116711 | E136: 3975331577 | F136: 90206442577 | H136: 90206442577 | I136: 175329024 | J136: 40902895880 | K136: 0.4534365253 | L136: 82343970 | M136: 1563088171 | N136: 0.0173278995
A137: 334011506390179000082 | B137: PLAN DE SANEAMIENTO Y MANEJO DE VERTIMIENTOS | C137: 86231111000 | D137: 2637116711 | E137: 3975331577 | F137: 90206442577 | H137: 90206442577 | I137: 175329024 | J137: 40902895880 | K137: 0.4534365253 | L137: 82343970 | M137: 1563088171 | N137: 0.0173278995
A138: 334011507000000 | B138: EJE TRANSVERSAL GOBIERNO LEGITIMO, FORT. LOCAL Y EFICIENTE | C138: 98775295000 | D138: 5560465904 | E138: -1960689986 | F138: 96814605014 | H138: 96814605014 | I138: 6772177189 | J138: 9416438059 | K138: 0.09726257787 | L138: 13999999 | M138: 252312194 | N138: 0.00260613772
A139: 334011507420000 | B139: TRANSPARENCIA, GESTION PUBLICA Y SERVICIO A LA CIUDADANIA | C139: 98775295000 | D139: 5560465904 | E139: -1960689986 | F139: 96814605014 | H139: 96814605014 | I139: 6772177189 | J139: 9416438059 | K139: 0.09726257787 | L139: 13999999 | M139: 252312194 | N139: 0.00260613772
A140: 334011507420185 | B140: FORTALECIMIENTO A LA GESTION PUBLICA EFECTIVA Y EFICIENTE | C140: 98775295000 | D140: 5560465904 | E140: -1960689986 | F140: 96814605014 | H140: 96814605014 | I140: 6772177189 | J140: 9416438059 | K140: 0.09726257787 | L140: 13999999 | M140: 252312194 | N140: 0.00260613772
A141: 334011507420185000055 | B141: 0055 - FORTALECIMIENTO ADMINISTRATIVO Y OPERATIVO EMPRESARIA | C141: 98775295000 | D141: 5560465904 | E141: -1960689986 | F141: 96814605014 | H141: 96814605014 | I141: 6772177189 | J141: 9416438059 | K141: 0.09726257787 | L141: 13999999 | M141: 252312194 | N141: 0.00260613772
A142: 334011507420185000055 | B142: FORTALECIMIENTO ADMINISTRATIVO Y OPERATIVO EMPRESARIAL | C142: 98775295000 | D142: 5560465904 | E142: -1960689986 | F142: 96814605014 | H142: 96814605014 | I142: 6772177189 | J142: 9416438059 | K142: 0.09726257787 | L142: 13999999 | M142: 252312194 | N142: 0.00260613772
A143: 334020000000000 | B143: TRANSFERENCIAS PARA INVERSION | C143: 872741045000 | D143: 22003694856 | E143: 6662512845 | F143: 879403557845 | H143: 879403557845 | J143: 35105007046 | K143: 0.03991910964 | M143: 35105007046 | N143: 0.03991910964
A144: 334020200000000 | B144: EMPRESAS DISTRITALES | C144: 872741045000 | D144: 22003694856 | E144: 6662512845 | F144: 879403557845 | H144: 879403557845 | J144: 35105007046 | K144: 0.03991910964 | M144: 35105007046 | N144: 0.03991910964
A145: 334030000000000 | B145: CUENTAS POR PAGAR | C145: 761645032000 | E145: -2487097950 | F145: 759157934050 | H145: 759157934050 | I145: -825798549 | J145: 757539522164 | K145: 0.9978681486 | L145: 34603418008 | M145: 259722909374 | N145: 0.3421197326
A146: 334030000000000 | B146: CUENTAS POR PAGAR | C146: 761645032000 | E146: -2487097950 | F146: 759157934050 | H146: 759157934050 | I146: -825798549 | J146: 757539522164 | K146: 0.9978681486 | L146: 34603418008 | M146: 259722909374 | N146: 0.3421197326
A147: 340000000000000 | B147: DISPONIBILIDAD FINAL | C147: 238551564000 | E147: 187868408437 | F147: 426419972437 | H147: 426419972437
A148: 340000000000000 | B148: DISPONIBILIDAD FINAL | C148: 238551564000 | E148: 187868408437 | F148: 426419972437 | H148: 426419972437
B153: JULIANA CASTRO BUITRAGO | F153: MAURICIO GOMEZ ARANGO
B154: Directora Presupuesto | F154: Gerente Corporativo Financiero

Sheet Graph (hidden)
G1: FEP8Qry3
F2: Dir. SIE - BI Rev 2014.01
F5: Information
F6: Autor | G6: RAGARCIA | I6: Últ.actual.pantalla | J6: 02/07/2014 09:16:31
F7: Usuario actual | G7: AOCAMPOR | I7: Fe.clave | J7: 02/07/2014
F8: Modificado por | G8: RAGARCIA | I8: Hora de modificación | J8: 12/06/2014 15:20:31
F9: InfoSitio | G9: 0PU_C02 | I9: Actualidad de datos | J9: 02/07/2014 00:39:33
F10: Nombre técnico query | G10: ZPU_C02_Q4001 | I10: Actualidad de datos (fecha) | J10: 02/07/2014
F11: Descripción query | G11: EJECUCION PRESUPUESTAL DE GASTOS - SECRETARIA DE HACIENDA | I11: Actualidad de los datos (hora) | J11: 00:39:33
C14: Filter
C15: Cta Entidades PSM | D15: GASTOS, DISPONIBILIDAD FINAL
C16: Ratios

Sheet V_Futuras_2019-2021
A2: EMPRESA DE ACUEDUCTO ALCANTARILLADO DE BOGOTA | M2: EMPRESA DE ACUEDUCTO ALCANTARILLADO DE BOGOTA | Y2: EMPRESA DE ACUEDUCTO ALCANTARILLADO DE BOGOTA | AK2: EMPRESA DE ACUEDUCTO ALCANTARILLADO DE BOGOTA
A3: EJECUCION PRESUPUESTAL DE VIGENCIAS FUTURAS | M3: EJECUCION PRESUPUESTAL DE VIGENCIAS FUTURAS | Y3: EJECUCION PRESUPUESTAL DE VIGENCIAS FUTURAS | AK3: EJECUCION PRESUPUESTAL DE VIGENCIAS FUTURAS
A4: A 31 AGOSTO DE 2019 | M4: A 31 AGOSTO DE 2019 | Y4: A 31 AGOSTO DE 2019 | AK4: A 31 AGOSTO DE 2019
A6: 2020 | M6: 2021 | Q6: 2020 | Y6: 2022 | AK6: 2020-2022
A7: CODIGO SECRETARIA DE HACIENDA | B7: CONCEPTO | C7: PRESUPUESTO INICIAL | D7: MODIFICACIONES MES | E7: MODIFICACIONES ACUMULADAS | F7: PRESUPUESTO DEFINITIVO | G7: COMPROMISOS MES | H7: COMPROMISOS ACUMULADOS | I7: % EJEC PPTAL | J7: DISPONIBILIDADES MES | K7: DISPONIBILIDADES ACUMULADAS | L7: SALDO DISPONIBLE | M7: CODIGO SECRETARIA DE HACIENDA | N7: CONCEPTO | O7: PRESUPUESTO INICIAL | P7: MODIFICACIONES MES | Q7: MODIFICACIONES ACUMULADAS | R7: PRESUPUESTO DEFINITIVO | S7: COMPROMISOS MES | T7: COMPROMISOS ACUMULADOS | U7: % EJEC PPTAL | V7: DISPONIBILIDADES MES | W7: DISPONIBILIDADES ACUMULADAS | X7: SALDO DISPONIBLE | Y7: CODIGO SECRETARIA DE HACIENDA | Z7: CONCEPTO | AA7: PRESUPUESTO INICIAL | AB7: MODIFICACIONES MES | AC7: MODIFICACIONES ACUMULADAS | AD7: PRESUPUESTO DEFINITIVO | AE7: COMPROMISOS MES | AF7: COMPROMISOS ACUMULADOS | AG7: % EJEC PPTAL | AH7: DISPONIBILIDADES MES | AI7: DISPONIBILIDADES ACUMULADAS | AJ7: SALDO DISPONIBLE | AK7: CODIGO SECRETARIA DE HACIENDA | AL7: CONCEPTO | AM7: Presupuesto Inicial VF Total | AN7: Modificaciones mes VF Total | AO7: Modificaciones Acumuladas VF Total | AP7: Presupuesto Definitivo VF Total | AQ7: Compromisos mes Total | AR7: Compromisos Acumulados Total | AS7: % EJEC PPTAL | AT7: Disponibilidades mes Total | AU7: Disponibilidades Acumuladas Total | AV7: Saldo Disponible Total
A8: 3 | B8: TOTAL GASTOS | C8: =C9 -> 192730564846 | D8: =D9 -> 0 | E8: 544706469479 | F8: 737437034325 | G8: 35280560580 | H8: 316289341699 | I8: =H8/F8 -> 0.4289035226 | J8: -11379888857 | K8: 324090362083 | L8: 97057330543 | M8: 3 | N8: TOTAL GASTOS | O8: =O9 -> 65381426116 | P8: =P9 -> 0 | Q8: =Q9 -> 236938250649 | R8: =R9 -> 302319676765 | S8: =S9 -> 9481764534 | T8: =T9 -> 78155304186 | U8: =T8/R8 -> 0.2585187475 | V8: =V9 -> -3146919556 | W8: =W9 -> 206114440455 | X8: =X9 -> 18049932124 | Y8: 3 | Z8: TOTAL GASTOS | AA8: =AA9 -> 0 | AB8: 0 | AC8: 25071261728 | AD8: 25071261728 | AE8: 0 | AF8: 0 | AG8: 0 | AH8: =AH9 -> 1443312392 | AI8: 25071261728 | AJ8: 0 | AK8: 3 | AL8: TOTAL GASTOS | AM8: =AM9 -> 258111990962 | AN8: =AN9 -> 0 | AO8: 806715981856 | AP8: 1064827972818 | AQ8: 44762325114 | AR8: 394444645885 | AS8: =AR8/AP8 -> 0.3704303943 | AT8: =AT9 -> -13083496021 | AU8: =AU9 -> 555276064266 | AV8: =AV9 -> 115107262667
A9: 330000000000000 | B9: GASTOS | C9: 192730564846 | D9: 0 | E9: 544706469479 | F9: 737437034325 | G9: 35280560580 | H9: 316289341699 | I9: =H9/F9 -> 0.4289035226 | J9: -11379888857 | K9: 324090362083 | L9: 97057330543 | M9: 330000000000000 | N9: GASTOS | O9: 65381426116 | P9: 0 | Q9: 236938250649 | R9: 302319676765 | S9: 9481764534 | T9: 78155304186 | U9: =T9/R9 -> 0.2585187475 | V9: -3146919556 | W9: 206114440455 | X9: 18049932124 | Y9: 330000000000000 | Z9: GASTOS | AA9: 0 | AB9: 0 | AC9: 25071261728 | AD9: 25071261728 | AE9: 0 | AF9: 0 | AG9: 0 | AH9: 1443312392 | AI9: 25071261728 | AJ9: 0 | AK9: 330000000000000 | AL9: GASTOS | AM9: 258111990962 | AN9: 0 | AO9: 806715981856 | AP9: 1064827972818 | AQ9: 44762325114 | AR9: 394444645885 | AS9: =AR9/AP9 -> 0.3704303943 | AT9: -13083496021 | AU9: 555276064266 | AV9: 115107262667
A10: 334000000000000 | B10: INVERSION | C10: 192730564846 | D10: 0 | E10: 544706469479 | F10: 737437034325 | G10: 35280560580 | H10: 316289341699 | I10: 0.4289035226 | J10: -11379888857 | K10: 324090362083 | L10: 97057330543 | M10: 334000000000000 | N10: INVERSION | O10: 65381426116 | P10: 0 | Q10: 236938250649 | R10: 302319676765 | S10: 9481764534 | T10: 78155304186 | U10: 0.2585187475 | V10: -3146919556 | W10: 206114440455 | X10: 18049932124 | Y10: 334000000000000 | Z10: INVERSION | AA10: 0 | AB10: 0 | AC10: 25071261728 | AD10: 25071261728 | AE10: 0 | AF10: 0 | AG10: 0 | AH10: 1443312392 | AI10: 25071261728 | AJ10: 0 | AK10: 334000000000000 | AL10: INVERSION | AM10: 258111990962 | AN10: 0 | AO10: 806715981856 | AP10: 1064827972818 | AQ10: 44762325114 | AR10: 394444645885 | AS10: 0.3704303943 | AT10: -13083496021 | AU10: 555276064266 | AV10: 115107262667
A11: 334010000000000 | B11: DIRECTA | C11: 192730564846 | D11: 0 | E11: 544706469479 | F11: 737437034325 | G11: 35280560580 | H11: 316289341699 | I11: 0.4289035226 | J11: -11379888857 | K11: 324090362083 | L11: 97057330543 | M11: 334010000000000 | N11: DIRECTA | O11: 65381426116 | P11: 0 | Q11: 236938250649 | R11: 302319676765 | S11: 9481764534 | T11: 78155304186 | U11: 0.2585187475 | V11: -3146919556 | W11: 206114440455 | X11: 18049932124 | Y11: 334010000000000 | Z11: DIRECTA | AA11: 0 | AB11: 0 | AC11: 25071261728 | AD11: 25071261728 | AE11: 0 | AF11: 0 | AG11: 0 | AH11: 1443312392 | AI11: 25071261728 | AJ11: 0 | AK11: 334010000000000 | AL11: DIRECTA | AM11: 258111990962 | AN11: 0 | AO11: 806715981856 | AP11: 1064827972818 | AQ11: 44762325114 | AR11: 394444645885 | AS11: 0.3704303943 | AT11: -13083496021 | AU11: 555276064266 | AV11: 115107262667
A12: 334011500000000 | B12: BOGOTÁ MEJOR PARA TODOS | C12: 192730564846 | D12: 0 | E12: 544706469479 | F12: 737437034325 | G12: 35280560580 | H12: 316289341699 | I12: 0.4289035226 | J12: -11379888857 | K12: 324090362083 | L12: 97057330543 | M12: 334011500000000 | N12: BOGOTÁ MEJOR PARA TODOS | O12: 65381426116 | P12: 0 | Q12: 236938250649 | R12: 302319676765 | S12: 9481764534 | T12: 78155304186 | U12: 0.2585187475 | V12: -3146919556 | W12: 206114440455 | X12: 18049932124 | Y12: 334011500000000 | Z12: BOGOTÁ MEJOR PARA TODOS | AA12: 0 | AB12: 0 | AC12: 25071261728 | AD12: 25071261728 | AE12: 0 | AF12: 0 | AG12: 0 | AH12: 1443312392 | AI12: 25071261728 | AJ12: 0 | AK12: 334011500000000 | AL12: BOGOTÁ MEJOR PARA TODOS | AM12: 258111990962 | AN12: 0 | AO12: 806715981856 | AP12: 1064827972818 | AQ12: 44762325114 | AR12: 394444645885 | AS12: 0.3704303943 | AT12: -13083496021 | AU12: 555276064266 | AV12: 115107262667
A13: 334011502000000 | B13: PILAR DEMOCRACIA URBANA | C13: 192730564846 | D13: 0 | E13: 544706469479 | F13: 737437034325 | G13: 35280560580 | H13: 316289341699 | I13: 0.4289035226 | J13: -11379888857 | K13: 324090362083 | L13: 97057330543 | M13: 334011502000000 | N13: PILAR DEMOCRACIA URBANA | O13: 65381426116 | P13: 0 | Q13: 236938250649 | R13: 302319676765 | S13: 9481764534 | T13: 78155304186 | U13: 0.2585187475 | V13: -3146919556 | W13: 206114440455 | X13: 18049932124 | Y13: 334011502000000 | Z13: PILAR DEMOCRACIA URBANA | AA13: 0 | AB13: 0 | AC13: 25071261728 | AD13: 25071261728 | AE13: 0 | AF13: 0 | AG13: 0 | AH13: 1443312392 | AI13: 25071261728 | AJ13: 0 | AK13: 334011502000000 | AL13: PILAR DEMOCRACIA URBANA | AM13: 258111990962 | AN13: 0 | AO13: 806715981856 | AP13: 1064827972818 | AQ13: 44762325114 | AR13: 394444645885 | AS13: 0.3704303943 | AT13: -13083496021 | AU13: 555276064266 | AV13: 115107262667
A14: 334011502130000 | B14: INFRAESTRUCTURA PARA EL DESARROLLO DEL HÁBITAT. | C14: 192730564846 | D14: 0 | E14: 544706469479 | F14: 737437034325 | G14: 35280560580 | H14: 316289341699 | I14: 0.4289035226 | J14: -11379888857 | K14: 324090362083 | L14: 97057330543 | M14: 334011502130000 | N14: INFRAESTRUCTURA PARA EL DESARROLLO DEL HÁBITAT. | O14: 65381426116 | P14: 0 | Q14: 236938250649 | R14: 302319676765 | S14: 9481764534 | T14: 78155304186 | U14: 0.2585187475 | V14: -3146919556 | W14: 206114440455 | X14: 18049932124 | Y14: 334011502130000 | Z14: INFRAESTRUCTURA PARA EL DESARROLLO DEL HÁBITAT. | AA14: 0 | AB14: 0 | AC14: 25071261728 | AD14: 25071261728 | AE14: 0 | AF14: 0 | AG14: 0 | AH14: 1443312392 | AI14: 25071261728 | AJ14: 0 | AK14: 334011502130000 | AL14: INFRAESTRUCTURA PARA EL DESARROLLO DEL HÁBITAT. | AM14: 258111990962 | AN14: 0 | AO14: 806715981856 | AP14: 1064827972818 | AQ14: 44762325114 | AR14: 394444645885 | AS14: 0.3704303943 | AT14: -13083496021 | AU14: 555276064266 | AV14: 115107262667
A15: 334011502130133 | B15: INFRAESTRUCTURA PARA EL DESARROLLO DEL HÁBITAT. | C15: =SUM(C16:C24) -> 192730564846 | D15: =SUM(D16:D24) -> 0 | E15: 544706469479 | F15: 737437034325 | G15: 35280560580 | H15: 316289341699 | I15: 0.4289035226 | J15: -11379888857 | K15: 324090362083 | L15: 97057330543 | M15: 334011502130133 | N15: INFRAESTRUCTURA PARA EL DESARROLLO DEL HÁBITAT. | O15: =SUM(O16:O24) -> 65381426116 | P15: =SUM(P16:P24) -> 0 | Q15: =SUM(Q16:Q24) -> 236938250649 | R15: =SUM(R16:R24) -> 302319676765 | S15: =SUM(S16:S24) -> 9481764534 | T15: =SUM(T16:T24) -> 78155304186 | U15: 0.2585187475 | V15: =SUM(V16:V24) -> -3146919556 | W15: =SUM(W16:W24) -> 206114440455 | X15: =SUM(X16:X24) -> 18049932124 | Y15: 334011502130133 | Z15: INFRAESTRUCTURA PARA EL DESARROLLO DEL HÁBITAT. | AA15: =SUM(AA16:AA24) -> 0 | AB15: =SUM(AB16:AB24) -> 0 | AC15: 25071261728 | AD15: 25071261728 | AE15: 0 | AF15: 0 | AG15: 0 | AH15: =SUM(AH16:AH24) -> 1443312392 | AI15: 25071261728 | AJ15: 0 | AK15: 334011502130133 | AL15: INFRAESTRUCTURA PARA EL DESARROLLO DEL HÁBITAT. | AM15: =SUM(AM16:AM24) -> 258111990962 | AN15: =SUM(AN16:AN24) -> 0 | AO15: 806715981856 | AP15: 1064827972818 | AQ15: 44762325114 | AR15: 394444645885 | AS15: 0.3704303943 | AT15: =SUM(AT16:AT24) -> -13083496021 | AU15: =SUM(AU16:AU24) -> 555276064266 | AV15: =SUM(AV16:AV24) -> 115107262667
A16: 334011502130133000020 | B16: CONST. REDES LOCALES SERVICIO DE ALCANTARILLADO SANITARIO | C16: 0 | D16: 0 | E16: 15537880409 | F16: 15537880409 | G16: 0 | H16: 0 | I16: =H16/F16 -> 0 | J16: 0 | K16: 0 | L16: 15537880409 | M16: 334011502130133000020 | N16: CONST. REDES LOCALES SERVICIO DE ALCANTARILLADO SANITARIO | O16: 0 | P16: 0 | Q16: 0 | R16: 0 | S16: 0 | T16: 0 | U16: 0 | V16: 0 | W16: 0 | X16: 0 | Y16: 334011502130133000020 | Z16: CONST. REDES LOCALES SERVICIO DE ALCANTARILLADO SANITARIO | AA16: 0 | AB16: 0 | AC16: 0 | AD16: 0 | AE16: 0 | AF16: 0 | AG16: 0 | AH16: 0 | AI16: 0 | AJ16: 0 | AK16: 334011502130133000020 | AL16: CONST. REDES LOCALES SERVICIO DE ALCANTARILLADO SANITARIO | AM16: 0 | AN16: 0 | AO16: 15537880409 | AP16: 15537880409 | AQ16: 0 | AR16: 0 | AS16: 0 | AT16: 0 | AU16: 0 | AV16: 15537880409
A17: 334011502130133000050 | B17: REN, REHAB O REP SIST ABAST, DIST MATRIZ Y RED LOCAL AC. | C17: 0 | D17: 0 | E17: 229440895227 | F17: 229440895227 | G17: 2775513672 | H17: 4017732936 | I17: =H17/F17 -> 0.01751097132 | J17: 1053046391 | K17: 225423162291 | L17: 0 | M17: 334011502130133000050 | N17: REN, REHAB O REP SIST ABAST, DIST MATRIZ Y RED LOCAL AC. | O17: 0 | P17: 0 | Q17: 197654454696 | R17: 197654454696 | S17: 849363152 | T17: 1192058216 | U17: 0.006031021248 | V17: 2762227555 | W17: 196462396480 | X17: 0 | Y17: 334011502130133000050 | Z17: REN, REHAB O REP SIST ABAST, DIST MATRIZ Y RED LOCAL AC. | AA17: 0 | AB17: 0 | AC17: 25071261728 | AD17: 25071261728 | AE17: 0 | AF17: 0 | AG17: 0 | AH17: 1443312392 | AI17: 25071261728 | AJ17: 0 | AK17: 334011502130133000050 | AL17: REN, REHAB O REP SIST ABAST, DIST MATRIZ Y RED LOCAL AC. | AM17: 0 | AN17: 0 | AO17: 452166611651 | AP17: 452166611651 | AQ17: 3624876824 | AR17: 5209791152 | AS17: 0.01152183956 | AT17: 5258586338 | AU17: 446956820499 | AV17: 0
A18: 334011502130133000051 | B18: REN, REHAB O REP SIST TRONCAL SECUNDARIO Y LOCAL ALC. SANITA | C18: 0 | D18: 0 | E18: 40720148701 | F18: 40720148701 | G18: 29199264156 | H18: 37918193172 | I18: 0.9311899485 | J18: -29199264156 | K18: 2801955529 | L18: 0 | M18: 334011502130133000051 | N18: REN, REHAB O REP SIST TRONCAL SECUNDARIO Y LOCAL ALC. SANITA | O18: 0 | P18: 0 | Q18: 16288059492 | R18: 16288059492 | S18: 7657730797 | T18: 10080290072 | U18: 0.6188760593 | V18: -7657730797 | W18: 6207769420 | X18: 0 | Y18: 334011502130133000051 | Z18: REN, REHAB O REP SIST TRONCAL SECUNDARIO Y LOCAL ALC. SANITA | AA18: 0 | AB18: 0 | AC18: 0 | AD18: 0 | AE18: 0 | AF18: 0 | AG18: 0 | AH18: 0 | AI18: 0 | AJ18: 0 | AK18: 334011502130133000051 | AL18: REN, REHAB O REP SIST TRONCAL SECUNDARIO Y LOCAL ALC. SANITA | AM18: 0 | AN18: 0 | AO18: 57008208193 | AP18: 57008208193 | AQ18: 36856994953 | AR18: 47998483244 | AS18: 0.8419574087 | AT18: -36856994953 | AU18: 9009724949 | AV18: 0
A19: 334011502130133000052 | B19: REN REHAB O REP SIST TRONCAL SECUNDARIO Y LOCAL ALC. PLUVIAL | C19: 0 | D19: 0 | E19: 5556375192 | F19: 5556375192 | G19: 3305782752 | H19: 5239686348 | I19: 0.9430044169 | J19: -3305782752 | K19: 316688844 | L19: 0 | M19: 334011502130133000052 | N19: REN REHAB O REP SIST TRONCAL SECUNDARIO Y LOCAL ALC. PLUVIAL | O19: 0 | P19: 0 | Q19: 2222550066 | R19: 2222550066 | S19: 974670585 | T19: 1501529782 | U19: 0.6755887325 | V19: -974670585 | W19: 721020284 | X19: 0 | Y19: 334011502130133000052 | Z19: REN REHAB O REP SIST TRONCAL SECUNDARIO Y LOCAL ALC. PLUVIAL | AA19: 0 | AB19: 0 | AC19: 0 | AD19: 0 | AE19: 0 | AF19: 0 | AG19: 0 | AH19: 0 | AI19: 0 | AJ19: 0 | AK19: 334011502130133000052 | AL19: REN REHAB O REP SIST TRONCAL SECUNDARIO Y LOCAL ALC. PLUVIAL | AM19: 0 | AN19: 0 | AO19: 7778925258 | AP19: 7778925258 | AQ19: 4280453337 | AR19: 6741216130 | AS19: 0.8665999359 | AT19: -4280453337 | AU19: 1037709128 | AV19: 0
A20: 334011502130133000053 | B20: REN, REHAB O REP SIST TRONCAL, SECUNDARIO Y LOCAL ALC. COMBI | C20: 1979233837 | D20: 0 | E20: 20888409906 | F20: 22867643743 | G20: 0 | H20: 1979233837 | I20: 0.08655171732 | J20: 0 | K20: 0 | L20: 20888409906 | M20: 334011502130133000053 | N20: REN, REHAB O REP SIST TRONCAL, SECUNDARIO Y LOCAL ALC. COMBI | O20: 0 | P20: 0 | Q20: 9628114834 | R20: 9628114834 | S20: 0 | T20: 0 | U20: 0 | V20: 0 | W20: 0 | X20: 9628114834 | Y20: 334011502130133000053 | Z20: REN, REHAB O REP SIST TRONCAL, SECUNDARIO Y LOCAL ALC. COMBI | AA20: 0 | AB20: 0 | AC20: 0 | AD20: 0 | AE20: 0 | AF20: 0 | AG20: 0 | AH20: 0 | AI20: 0 | AJ20: 0 | AK20: 334011502130133000053 | AL20: REN, REHAB O REP SIST TRONCAL, SECUNDARIO Y LOCAL ALC. COMBI | AM20: 1979233837 | AN20: 0 | AO20: 30516524740 | AP20: 32495758577 | AQ20: 0 | AR20: 1979233837 | AS20: 0.06090745142 | AT20: 0 | AU20: 0 | AV20: 30516524740
A21: 334011502130133000054 | B21: ACCIONES PARA EL SANEAMIENTO DEL RÍO BOGOTÁ | C21: 189945839941 | D21: 0 | E21: 0 | F21: 189945839941 | G21: 0 | H21: 189945839941 | I21: 1 | J21: 0 | K21: 0 | L21: 0 | M21: 334011502130133000054 | N21: ACCIONES PARA EL SANEAMIENTO DEL RÍO BOGOTÁ | O21: 65381426116 | P21: 0 | Q21: 0 | R21: 65381426116 | S21: 0 | T21: 65381426116 | U21: 1 | V21: 0 | W21: 0 | X21: 0 | Y21: 334011502130133000054 | Z21: ACCIONES PARA EL SANEAMIENTO DEL RÍO BOGOTÁ | AA21: 0 | AB21: 0 | AC21: 0 | AD21: 0 | AE21: 0 | AF21: 0 | AG21: 0 | AH21: 0 | AI21: 0 | AJ21: 0 | AK21: 334011502130133000054 | AL21: ACCIONES PARA EL SANEAMIENTO DEL RÍO BOGOTÁ | AM21: 255327266057 | AN21: 0 | AO21: 0 | AP21: 255327266057 | AQ21: 0 | AR21: 255327266057 | AS21: 1 | AT21: 0 | AU21: 0 | AV21: 0
A22: 334011502130133000068 | B22: CONST, REN, REHAB O REP REDES ASOCIADAS INFRAESTRUCTURA VIAL | C22: 0 | D22: 0 | E22: 80703151888 | F22: 80703151888 | G22: 0 | H22: 0 | I22: 0 | J22: 20072111660 | K22: 20072111660 | L22: 60631040228 | M22: 334011502130133000068 | N22: CONST, REN, REHAB O REP REDES ASOCIADAS INFRAESTRUCTURA VIAL | O22: 0 | P22: 0 | Q22: 11145071561 | R22: 11145071561 | S22: 0 | T22: 0 | U22: 0 | V22: 2723254271 | W22: 2723254271 | X22: 8421817290 | Y22: 334011502130133000068 | Z22: CONST, REN, REHAB O REP REDES ASOCIADAS INFRAESTRUCTURA VIAL | AA22: 0 | AB22: 0 | AC22: 0 | AD22: 0 | AE22: 0 | AF22: 0 | AG22: 0 | AH22: 0 | AI22: 0 | AJ22: 0 | AK22: 334011502130133000068 | AL22: CONST, REN, REHAB O REP REDES ASOCIADAS INFRAESTRUCTURA VIAL | AM22: 0 | AN22: 0 | AO22: 91848223449 | AP22: 91848223449 | AQ22: 0 | AR22: 0 | AS22: 0 | AT22: 22795365931 | AU22: 22795365931 | AV22: 69052857518
A23: 334011502130133000081 | B23: CORREDORES AMBIENTALES | C23: 0 | D23: 0 | E23: 151859608156 | F23: 151859608156 | G23: 0 | H23: 76383164397 | I23: 0.5029853911 | J23: 0 | K23: 75476443759 | L23: 0 | M23: 334011502130133000081 | N23: CORREDORES AMBIENTALES | O23: 0 | P23: 0 | Q23: 0 | R23: 0 | S23: 0 | T23: 0 | U23: 0 | V23: 0 | W23: 0 | X23: 0 | Y23: 334011502130133000081 | Z23: CORREDORES AMBIENTALES | AA23: 0 | AB23: 0 | AC23: 0 | AD23: 0 | AE23: 0 | AF23: 0 | AG23: 0 | AH23: 0 | AI23: 0 | AJ23: 0 | AK23: 334011502130133000081 | AL23: CORREDORES AMBIENTALES | AM23: 0 | AN23: 0 | AO23: 151859608156 | AP23: 151859608156 | AQ23: 0 | AR23: 76383164397 | AS23: 0.5029853911 | AT23: 0 | AU23: 75476443759 | AV23: 0
A24: 334011502130133007338 | B24: CONSTRUCCIÓN DE REDES LOCALES PARA EL SERVICIO DE ACUEDUCTO | C24: 805491068 | D24: 0 | E24: 0 | F24: 805491068 | G24: 0 | H24: 805491068 | I24: 1 | J24: 0 | K24: 0 | L24: 0 | M24: 334011502130133007338 | N24: CONSTRUCCIÓN DE REDES LOCALES PARA EL SERVICIO DE ACUEDUCTO | O24: 0 | P24: 0 | Q24: 0 | R24: 0 | S24: 0 | T24: 0 | U24: 0 | V24: 0 | W24: 0 | X24: 0 | Y24: 334011502130133007338 | Z24: CONSTRUCCIÓN DE REDES LOCALES PARA EL SERVICIO DE ACUEDUCTO | AA24: 0 | AB24: 0 | AC24: 0 | AD24: 0 | AE24: 0 | AF24: 0 | AG24: 0 | AH24: 0 | AI24: 0 | AJ24: 0 | AK24: 334011502130133007338 | AL24: CONSTRUCCIÓN DE REDES LOCALES PARA EL SERVICIO DE ACUEDUCTO | AM24: 805491068 | AN24: 0 | AO24: 0 | AP24: 805491068 | AQ24: 0 | AR24: 805491068 | AS24: 1 | AT24: 0 | AU24: 0 | AV24: 0

Sheet Gastos P
A2: EMPRESA DE ACUEDUCTO ALCANTARILLADO DE BOGOTA
A3: EJECUCION PERSONERIA
A4: A 31 AGOSTO DE 2019
A5: CODIGO SECRETARIA DE HACIENDA | B5: RUBRO | C5: PRESUPUESTO INICIAL | D5: MODIFICACIONES MES | E5: MODIFICACIONES ACUMULADAS | F5: PRESUPUESTO DEFINITIVO | G5: SUSPENSION | H5: APROPIACION DISPONIBLE | I5: COMPROMISOS MES | J5: COMPROMISOS ACUMULADOS | K5: % EJEC PPTAL | L5: PAC ACUMULADO | M5: AUTORIZACIONES DE GIRO | O5: % EJEC AUT. GIRO | P5: % EJEC GIROS PAC
M6: MES | N6: ACUMULADO
A7: TOTAL GASTOS + DISPONIBILIDAD FINAL | C7: 5419077626000 | D7: 0 | E7: 306843335701 | F7: 5725920961701 | H7: 5725920961701 | I7: 108979822457 | J7: 2748840279029 | K7: 0.4800695464 | L7: 1966443159750 | M7: 129387361930 | N7: 1325577308700 | O7: 0.2315046466 | P7: 0.6740989701
A8: 330000000000000 | B8: GASTOS | C8: 5180526062000 | D8: 0 | E8: 118974927264 | F8: 5299500989264 | H8: 5299500989264 | I8: 108979822457 | J8: 2748840279029 | K8: 0.5186979462 | L8: 1966443159750 | M8: 129387361930 | N8: 1325577308700 | O8: 0.2501324769 | P8: 0.6740989701
A9: 331000000000000 | B9: GASTOS DE FUNCIONAMIENTO | C9: 1291563643000 | D9: 0 | E9: 67092561782 | F9: 1358656204782 | H9: 1358656204782 | I9: 56467275198 | J9: 982624148057 | K9: 0.7232323708 | L9: 947154245514 | M9: 66744425205 | N9: 745925863964 | O9: 0.5490173757 | P9: 0.7875442332
A10: 331010000000000 | B10: SERVICIOS PERSONALES | C10: 358789399000 | D10: 35635967 | E10: 3536112140 | F10: 362325511140 | H10: 362325511140 | I10: 19903278706 | J10: 231763295619 | K10: 0.6396549194 | L10: 258733678149 | M10: 23447529973 | N10: 199584789981 | O10: 0.5508438789 | P10: 0.7713908425
A11: 331010100000000 | B11: SERVICIOS PERSONALES ASOCIADOS A LA NOMINA | C11: 225857398000 | D11: 0 | E11: 299078879 | F11: 226156476879 | H11: 226156476879 | I11: 14144734947 | J11: 136879836874 | K11: 0.6052439389 | L11: 171196542929 | M11: 14136453787 | N11: 136871372766 | O11: 0.605206513 | P11: 0.799498462
A12: 331010101000000 | B12: SUELDOS PERSONAL DE NOMINA | C12: 126490927000 | D12: 0 | E12: 145583526 | F12: 126636510526 | H12: 126636510526 | I12: 9795061237 | J12: 79699739474 | K12: 0.6293583039 | L12: 94545962403 | M12: 9795061237 | N12: 79699739474 | O12: 0.6293583039 | P12: 0.8429734856
A13: 331010102000000 | B13: GASTOS DE REPRESENTACION | C13: 75042000 | F13: 75042000 | H13: 75042000 | L13: 56281500
A14: 331010103000000 | B14: HORAS EXTRAS, DOMINICALES, FESTIVOS, RECARGO NOCTURNO | C14: 16278640000 | F14: 16278640000 | H14: 16278640000 | I14: 1901455267 | J14: 12562071346 | K14: 0.7716904696 | L14: 14157463635 | M14: 1901455267 | N14: 12562071346 | O14: 0.7716904696 | P14: 0.887310868
A15: 331010104000000 | B15: SUBSIDIO DE TRANSPORTE | C15: 1968514000 | F15: 1968514000 | H15: 1968514000 | I15: 104097273 | J15: 833041418 | K15: 0.423182877 | L15: 1476385132 | M15: 104097273 | N15: 833041418 | O15: 0.423182877 | P15: 0.5642439767
A16: 331010105000000 | B16: SUBSIDIO DE ALIMENTACION | C16: 9532780000 | F16: 9532780000 | H16: 9532780000 | I16: 685890390 | J16: 5870473096 | K16: 0.6158196346 | L16: 7249584491 | M16: 685890390 | N16: 5870473096 | O16: 0.6158196346 | P16: 0.8097668361
A17: 331010106000000 | B17: BONIFICACION POR SERVICIOS PRESTADOS | C17: 437010000 | F17: 437010000 | H17: 437010000 | I17: 7089107 | J17: 128160352 | K17: 0.2932664058 | L17: 328126555 | M17: 7089107 | N17: 128160352 | O17: 0.2932664058 | P17: 0.3905820789
A18: 331010107000000 | B18: PRIMA SEMESTRAL | C18: 15809419000 | D18: 0 | E18: 46745094 | F18: 15856164094 | H18: 15856164094 | I18: 3241222 | J18: 15480693901 | K18: 0.9763202379 | L18: 15720053081 | M18: 3241222 | N18: 15480693901 | O18: 0.9763202379 | P18: 0.9847736405
A19: 331010109000000 | B19: PRIMA DE NAVIDAD | C19: 16154480000 | D19: 0 | E19: 23524325 | F19: 16178004325 | H19: 16178004325 | I19: 27122771 | J19: 146485227 | K19: 0.009054591905 | L19: 7017539107 | M19: 27122771 | N19: 146485227 | O19: 0.009054591905 | P19: 0.02087415898
A20: 331010110000000 | B20: PRIMA DE VACACIONES | C20: 17654651000 | D20: 0 | E20: 15176975 | F20: 17669827975 | H20: 17669827975 | I20: 583036365 | J20: 10004416859 | K20: 0.5661864322 | L20: 13200155324 | M20: 583036365 | N20: 10004416859 | O20: 0.5661864322 | P20: 0.7579014499
A21: 331010111000000 | B21: PRIMA TECNICA | C21: 4209393000 | D21: 0 | E21: 68048959 | F21: 4277441959 | H21: 4277441959 | I21: 340941704 | J21: 2609211839 | K21: 0.6099935111 | L21: 3160638268 | M21: 340941704 | N21: 2609211839 | O21: 0.6099935111 | P21: 0.8255332049
A22: 331010112000000 | B22: OTRAS PRIMAS Y BONIFICACIONES | C22: 10407642000 | F22: 10407642000 | H22: 10407642000 | I22: 235818008 | J22: 5776594097 | K22: 0.5550338969 | L22: 8496304732 | M22: 227536848 | N22: 5768129989 | O22: 0.554220638 | P22: 0.6788986708
A23: 331010114000000 | B23: QUINQUENIO | C23: 6155108000 | F23: 6155108000 | H23: 6155108000 | I23: 439657616 | J23: 3337500829 | K23: 0.5422326999 | L23: 5129256704 | M23: 439657616 | N23: 3337500829 | O23: 0.5422326999 | P23: 0.6506792351
A24: 331010115000000 | B24: INDEMNIZACIONES LABORALES | C24: 100000000 | F24: 100000000 | H24: 100000000 | L24: 74999997
A25: 331010116000000 | B25: CONVENCIONES COLECTIVAS O CONVENIOS | C25: 583792000 | F25: 583792000 | H25: 583792000 | I25: 21323987 | J25: 431448436 | K25: 0.7390447899 | L25: 583792000 | M25: 21323987 | N25: 431448436 | O25: 0.7390447899 | P25: 0.7390447899
A26: 331010200000000 | B26: SERVICIOS PERSONALES INDIRECTOS | C26: 67383543000 | D26: 35635967 | E26: 3237033261 | F26: 70620576261 | H26: 70620576261 | I26: 1286084598 | J26: 50261483565 | K26: 0.7117116034 | L26: 33704496111 | M26: 4818761488 | N26: 22284793108 | O26: 0.3155566591 | P26: 0.6611816131
A27: 331010203000000 | B27: HONORARIOS EMPRESA | C27: 54909345000 | D27: 35635967 | E27: 3612033261 | F27: 58521378261 | H27: 58521378261 | I27: 1026827606 | J27: 47142581854 | K27: 0.8055617153 | L27: 29880545856 | M27: 4475284996 | N27: 19612272048 | O27: 0.3351300436 | P27: 0.6563558826
A28: 331010204000000 | B28: REMUNERACION SERVICIOS TECNICOS | C28: 1568517000 | D28: 0 | E28: -375000000 | F28: 1193517000 | H28: 1193517000 | I28: -14662500 | J28: 805458442 | K28: 0.6748613065 | L28: 510763419 | M28: 69557000 | N28: 359077791 | O28: 0.3008568717 | P28: 0.7030217467
A29: 331010299000000 | B29: OTROS GASTOS DE PERSONAL | C29: 10905681000 | F29: 10905681000 | H29: 10905681000 | I29: 273919492 | J29: 2313443269 | K29: 0.2121319401 | L29: 3313186836 | M29: 273919492 | N29: 2313443269 | O29: 0.2121319401 | P29: 0.6982531875
A30: 331010300000000 | B30: APORTES PATRONALES AL SECTOR PRIVADO Y PUBLICO | C30: 65548458000 | D30: 0 | E30: 0 | F30: 65548458000 | H30: 65548458000 | I30: 4472459161 | J30: 44621975180 | K30: 0.6807479007 | L30: 53832639109 | M30: 4492314698 | N30: 40428624107 | O30: 0.6167746022 | P30: 0.7510057983
A31: 331010301000000 | B31: APORTES PATRONALES AL SECTOR PRIVADO | C31: 58397668000 | D31: 0 | E31: -14458186868 | F31: 43939481132 | H31: 43939481132 | I31: 3086927415 | J31: 30684813172 | K31: 0.6983426381 | L31: 36611709257 | M31: 3101133874 | N31: 27757830248 | O31: 0.6317286762 | P31: 0.7581681055
A32: 331010301010000 | B32: CESANTÍAS FONDOS PRIVADOS | C32: 7625219000 | D32: 0 | E32: -2380000000 | F32: 5245219000 | H32: 5245219000 | J32: 5082890907 | K32: 0.9690521801 | L32: 5245219000 | N32: 5082890907 | O32: 0.9690521801 | P32: 0.9690521801
A33: 331010301020000 | B33: PENSIONES FONDOS PRIVADOS | C33: 21171531000 | D33: 0 | E33: -11478186868 | F33: 9693344132 | H33: 9693344132 | I33: 654668944 | J33: 5205739226 | K33: 0.5370426506 | L33: 7929444472 | M33: 637081252 | N33: 4546153854 | O33: 0.468997468 | P33: 0.5733256434
A34: 331010301030000 | B34: SALUD EPS PRIVADAS | C34: 20828865000 | D34: 0 | E34: -600000000 | F34: 20228865000 | H34: 20228865000 | I34: 1877033071 | J34: 15354934727 | K34: 0.759060616 | L34: 16857427374 | M34: 1895154322 | N34: 13620471575 | O34: 0.6733186254 | P34: 0.8079804393
A35: 331010301050000 | B35: CAJA DE COMPENSACION | C35: 8772053000 | F35: 8772053000 | H35: 8772053000 | I35: 555225400 | J35: 5041248312 | K35: 0.5746942377 | L35: 6579618411 | M35: 568898300 | N35: 4508313912 | O35: 0.5139405692 | P35: 0.6851938259
A36: 331010302000000 | B36: APORTES PATRONALES AL SECTOR PUBLICO | C36: 7150790000 | D36: 0 | E36: 14458186868 | F36: 21608976868 | H36: 21608976868 | I36: 1385531746 | J36: 13937162008 | K36: 0.6449709347 | L36: 17220929852 | M36: 1391180824 | N36: 12670793859 | O36: 0.5863671351 | P36: 0.7357787279
A37: 331010302010000 | B37: CESANTIAS FONDOS PÚBLICOS | D37: 0 | E37: 2380000000 | F37: 2380000000 | H37: 2380000000 | J37: 2285717049 | K37: 0.9603853147 | L37: 2380000000 | N37: 2285717049 | O37: 0.9603853147 | P37: 0.9603853147
A38: 331010302020000 | B38: PENSIONES FONDOS PÚBLICOS | D38: 0 | E38: 11478186868 | F38: 11478186868 | H38: 11478186868 | I38: 1038661405 | J38: 7702189524 | K38: 0.6710284135 | L38: 8650388380 | M38: 1004916826 | N38: 6811312126 | O38: 0.5934135944 | P38: 0.7873995741
A39: 331010302030000 | B39: SALUD EPS PUBLICOS | D39: 0 | E39: 600000000 | F39: 600000000 | H39: 600000000 | I39: 21817741 | J39: 195236635 | K39: 0.3253943917 | L39: 600000000 | M39: 22950598 | N39: 173125284 | O39: 0.28854214 | P39: 0.28854214
A40: 331010302040000 | B40: RIESGOS PROFESIONALES SECTOR PUBLICO | C40: 2124180000 | F40: 2124180000 | H40: 2124180000 | I40: 210675900 | J40: 1554616800 | K40: 0.7318667909 | L40: 1820261076 | M40: 187759800 | N40: 1341266600 | O40: 0.6314279393 | P40: 0.7368539698
A41: 331010302050000 | B41: ICBF | C41: 3036439000 | F41: 3036439000 | H41: 3036439000 | I41: 68623900 | J41: 1319834900 | K41: 0.4346653761 | L41: 2277524496 | M41: 105329500 | N41: 1235585300 | O41: 0.4069191905 | P41: 0.5425124086
A42: 331010302060000 | B42: SENA | C42: 1990171000 | F42: 1990171000 | H42: 1990171000 | I42: 45752800 | J42: 879567100 | K42: 0.4419555405 | L42: 1492755900 | M42: 70224100 | N42: 823787500 | O42: 0.4139279992 | P42: 0.5518568039
A43: 331020000000000 | B43: GASTOS GENERALES | C43: 500514708000 | D43: -35635967 | E43: 9892840047 | F43: 510407548047 | H43: 510407548047 | I43: 17206317984 | J43: 364965982977 | K43: 0.7150481696 | L43: 345242331411 | M43: 16907062103 | N43: 262425089589 | O43: 0.5141481363 | P43: 0.7601185188
A44: 331020100000000 | B44: ADQUISICION DE BIENES | C44: 48492183000 | D44: 0 | E44: 1826350188 | F44: 50318533188 | H44: 50318533188 | I44: 1941214245 | J44: 28256782949 | K44: 0.5615581608 | L44: 21178994517 | M44: 1257025604 | N44: 14052647489 | O44: 0.2792737904 | P44: 0.6635181608
A45: 331020101000000 | B45: DOTACION | C45: 3286323000 | D45: 0 | E45: -51779236 | F45: 3234543764 | H45: 3234543764 | I45: 808906453 | J45: 1955819246 | K45: 0.6046661875 | L45: 1836904307 | M45: 97475 | N45: 532764325 | O45: 0.1647108105 | P45: 0.2900337938
A46: 331020102000000 | B46: MATERIALES Y SUMINISTROS | C46: 11871646000 | D46: 0 | E46: 975002917 | F46: 12846648917 | H46: 12846648917 | I46: 1132307792 | J46: 7213058606 | K46: 0.5614739418 | L46: 4469707402 | M46: 114442123 | N46: 1643380366 | O46: 0.127922883 | P46: 0.3676706814
A47: 331020103000000 | B47: GASTOS DE COMPUTADOR | C47: 29306737000 | D47: 0 | E47: 896975973 | F47: 30203712973 | H47: 30203712973 | I47: 0 | J47: 15478266456 | K47: 0.5124623741 | L47: 12444378774 | M47: 874005854 | N47: 10986891034 | O47: 0.363759616 | P47: 0.8828798314
A48: 331020104000000 | B48: COMBUSTIBLES, LUBRICANTES Y LLANTAS | C48: 4027477000 | D48: 0 | E48: 6150534 | F48: 4033627534 | H48: 4033627534 | I48: 0 | J48: 3609638641 | K48: 0.8948864541 | L48: 2428004034 | M48: 268480152 | N48: 889611764 | O48: 0.2205488128 | P48: 0.3663963286
A49: 331020200000000 | B49: ADQUISICION DE SERVICIOS | C49: 168488698000 | D49: 0 | E49: -4644684968 | F49: 163844013032 | H49: 163844013032 | I49: 4827475186 | J49: 116498209775 | K49: 0.7110312279 | L49: 76809318553 | M49: 7068085236 | N49: 41636323435 | O49: 0.2541217263 | P49: 0.5420738554
A50: 331020201000000 | B50: VIATICOS Y GASTOS DE VIAJE | C50: 1178098000 | F50: 1178098000 | H50: 1178098000 | I50: 25992471 | J50: 400902311 | K50: 0.3402962326 | L50: 883572786 | M50: 66089746 | N50: 338326540 | O50: 0.2871803025 | P50: 0.3829073794
A51: 331020202000000 | B51: GASTOS DE TRANSPORTE Y COMUNICACIÓN | C51: 15506533000 | D51: 0 | E51: -52279900 | F51: 15454253100 | H51: 15454253100 | I51: 298400786 | J51: 13301904302 | K51: 0.8607277373 | L51: 8047719375 | M51: 1082930529 | N51: 5612111562 | O51: 0.3631435001 | P51: 0.6973542814
A52: 331020203000000 | B52: IMPRESOS Y PUBLICACIONES | C52: 824609000 | D52: 0 | E52: -84305580 | F52: 740303420 | H52: 740303420 | I52: 478645 | J52: 182569227 | K52: 0.2466140532 | L52: 200930223 | M52: 3777325 | N52: 76452507 | O52: 0.1032718544 | P52: 0.3804928191
A53: 331020204000000 | B53: MANTENIMIENTO Y REPARACIONES | C53: 82189005000 | D53: 0 | E53: -4321085695 | F53: 77867919305 | H53: 77867919305 | I53: 4030786508 | J53: 51973929162 | K53: 0.6674626679 | L53: 34108367346 | M53: 4249753111 | N53: 15347213602 | O53: 0.1970928945 | P53: 0.4499545067
A54: 331020205000000 | B54: ARRENDAMIENTOS | C54: 12050191000 | D54: 0 | E54: 80000000 | F54: 12130191000 | H54: 12130191000 | I54: 144056625 | J54: 10536432459 | K54: 0.8686122468 | L54: 5691032124 | M54: 303179374 | N54: 2546022961 | O54: 0.2098914156 | P54: 0.4473745545
A55: 331020206000000 | B55: SEGUROS | C55: 29125848000 | D55: 0 | E55: 0 | F55: 29125848000 | H55: 29125848000 | I55: 21031600 | J55: 19804167944 | K55: 0.6799516342 | L55: 19264909481 | M55: 23281198 | N55: 13271055641 | O55: 0.4556452963 | P55: 0.6888719438
A56: 331020207000000 | B56: SUMINISTRO DE ALIMENTOS | C56: 4903521000 | D56: 0 | E56: -500000000 | F56: 4403521000 | H56: 4403521000 | I56: -80620853 | J56: 3323353107 | K56: 0.7547035899 | L56: 1600000000 | M56: 504861179 | N56: 602164863 | O56: 0.1367462226 | P56: 0.3763530394
A57: 331020208000000 | B57: SERVICIOS PUBLICOS | C57: 5865650000 | D57: 0 | E57: 0 | F57: 5865650000 | H57: 5865650000 | I57: 95386404 | J57: 5171287232 | K57: 0.8816221957 | L57: 3631324980 | M57: 426442045 | N57: 2563081803 | O57: 0.4369646677 | P57: 0.7058255092
A58: 331020209000000 | B58: CAPACITACION | C58: 900000000 | D58: 0 | E58: -3124968 | F58: 896875032 | H58: 896875032 | I58: 4296000 | J58: 676310872 | K58: 0.754074813 | L58: 325471068 | M58: 91748959 | N58: 181994867 | O58: 0.2029210988 | P58: 0.5591737174
A59: 331020210000000 | B59: BIENESTAR E INCENTIVOS | C59: 4693616000 | D59: 0 | E59: 153722082 | F59: 4847338082 | H59: 4847338082 | I59: 0 | J59: 3999963004 | K59: 0.8251875434 | L59: 373000000 | M59: 14451685 | N59: 14451685 | O59: 0.002981365186 | P59: 0.03874446381
A60: 331020211000000 | B60: PROMOCION INSTITUCIONAL | C60: 6731186000 | D60: 0 | E60: -12146250 | F60: 6719039750 | H60: 6719039750 | I60: 229839000 | J60: 3584704020 | K60: 0.5335143344 | L60: 1473324973 | M60: 238454984 | N60: 615973943 | O60: 0.0916758891 | P60: 0.4180842342
A61: 331020212000000 | B61: INTERESES Y COMISIONES | C61: 3011310000 | D61: 0 | E61: 0 | F61: 3011310000 | H61: 3011310000 | I61: 0 | J61: 2723789171 | K61: 0.9045196845 | L61: 211680000 | M61: 12133971 | N61: 56188341 | O61: 0.01865910218 | P61: 0.2654400085
A62: 331020213000000 | B62: SALUD OCUPACIONAL | C62: 1367131000 | D62: 0 | E62: 94535343 | F62: 1461666343 | H62: 1461666343 | I62: 57828000 | J62: 677294964 | K62: 0.4633717998 | L62: 855986197 | M62: 50981130 | N62: 269683120 | O62: 0.1845038858 | P62: 0.3150554541
A63: 331020214000000 | B63: PROGRAMAS Y CONVENIOS INSTITUCIONES | C63: 142000000 | F63: 142000000 | H63: 142000000 | J63: 141602000 | K63: 0.9971971831 | L63: 142000000 | N63: 141602000 | O63: 0.9971971831 | P63: 0.9971971831
A64: 331020300000000 | B64: OTROS GASTOS GENERALES | C64: 283533827000 | D64: -35635967 | E64: 12711174827 | F64: 296245001827 | H64: 296245001827 | I64: 10437628553 | J64: 220210990253 | K64: 0.7433407784 | L64: 247254018341 | M64: 8581951263 | N64: 206736118665 | O64: 0.6978552124 | P64: 0.8361284482
A65: 331020301000000 | B65: IMPUESTOS, TASAS Y MULTAS | C65: 266871794000 | D65: 1487384119 | E65: 7310361113 | F65: 274182155113 | H65: 274182155113 | I65: 10116810220 | J65: 211755630619 | K65: 0.7723173324 | L65: 239145827380 | M65: 7916464779 | N65: 202103143950 | O65: 0.7371126829 | P65: 0.8451042034
A66: 331020302000000 | B66: SENTENCIAS JUDICIALES | C66: 750000000 | F66: 750000000 | H66: 750000000 | J66: 17724014 | K66: 0.02363201867 | L66: 562500000 | N66: 17724014 | O66: 0.02363201867 | P66: 0.03150935822
A67: 331020399000000 | B67: OTROS GASTOS GENERALES | C67: 15912033000 | D67: -1523020086 | E67: 5400813714 | F67: 21312846714 | H67: 21312846714 | I67: 320818333 | J67: 8437635620 | K67: 0.3958943511 | L67: 7545690961 | M67: 665486484 | N67: 4615250701 | O67: 0.2165478297 | P67: 0.6116405674
A68: 331030000000000 | B68: TRANSFERENCIAS CORRIENTES | C68: 312085533000 | D68: 0 | E68: 4578427895 | F68: 316663960895 | H68: 316663960895 | I68: 19600532308 | J68: 219531731829 | K68: 0.6932640241 | L68: 188250708742 | M68: 19515271000 | N68: 157770000776 | O68: 0.4982253122 | P68: 0.8380844982
A69: 331030300000000 | B69: TRANSFERENCIAS DE PREVISION Y SEGURIDAD SOCIAL | C69: 311435532000 | D69: 0 | E69: 4348077298 | F69: 315783609298 | H69: 315783609298 | I69: 19600532308 | J69: 219362869863 | K69: 0.6946619882 | L69: 187763208739 | M69: 19515271000 | N69: 157601138810 | O69: 0.4990795411 | P69: 0.8393611287
A70: 331030301000000 | B70: PENSIONES Y JUBILACIONES | C70: 199914405000 | D70: 0 | E70: -299078879 | F70: 199615326121 | H70: 199615326121 | I70: 13318511693 | J70: 120098944824 | K70: 0.601651923 | L70: 137449180341 | M70: 13351619789 | N70: 119827708002 | O70: 0.6002931254 | P70: 0.8717964538
A71: 331030302000000 | B71: CESANTIAS | C71: 17646342000 | F71: 17646342000 | H71: 17646342000 | I71: 1016210339 | J71: 7766869893 | K71: 0.4401405058 | L71: 13227568622 | M71: 1016210339 | N71: 7762816893 | O71: 0.4399108264 | P71: 0.5868664994
A72: 331030303000000 | B72: OTRAS TRANSFERENCIAS DE PREVISION SOCIAL | C72: 93874785000 | D72: 0 | E72: 4647156177 | F72: 98521941177 | H72: 98521941177 | I72: 5265810276 | J72: 91497055146 | K72: 0.928697243 | L72: 37086459776 | M72: 5147440872 | N72: 30010613915 | O72: 0.3046084309 | P72: 0.8092067589
A73: 331030303010000 | B73: FONDO DE VIVIENDA | C73: 29566811000 | D73: 0 | E73: 4647156177 | F73: 34213967177 | H73: 34213967177 | I73: 5181127476 | J73: 27750699592 | K73: 0.8110927169 | L73: 16100000000 | M73: 655212258 | N73: 14819096734 | O73: 0.433130033 | P73: 0.9204407909
A74: 331030303020000 | B74: PAGOS SERVICIOS MEDICOS CONVENCIONALES | C74: 64307974000 | D74: 0 | E74: 0 | F74: 64307974000 | H74: 64307974000 | I74: 84682800 | J74: 63746355554 | K74: 0.9912667371 | L74: 20986459776 | M74: 4492228614 | N74: 15191517181 | O74: 0.2362306917 | P74: 0.7238723131
A75: 331030400000000 | B75: OTRAS TRANSFERENCIAS | C75: 650001000 | D75: 0 | E75: 230350597 | F75: 880351597 | H75: 880351597 | J75: 168861966 | K75: 0.1918119608 | L75: 487500003 | N75: 168861966 | O75: 0.1918119608 | P75: 0.3463835179
A76: 331030401000000 | B76: DESTINATARIOS DE OTRAS TRANSFERENCIAS | C76: 650001000 | D76: 0 | E76: 230350597 | F76: 880351597 | H76: 880351597 | J76: 168861966 | K76: 0.1918119608 | L76: 487500003 | N76: 168861966 | O76: 0.1918119608 | P76: 0.3463835179
A77: 331040000000000 | B77: CUENTAS POR PAGAR FUNCIONAMIENTO | C77: 120174003000 | D77: 0 | E77: 49085181700 | F77: 169259184700 | H77: 169259184700 | I77: -242853800 | J77: 166363137632 | K77: 0.9828898676 | L77: 154927527212 | M77: 6874562129 | N77: 126145983618 | O77: 0.7452829449 | P77: 0.8142257602
A78: 331040000000000 | B78: CUENTAS POR PAGAR | C78: 120174003000 | D78: 0 | E78: 49085181700 | F78: 169259184700 | H78: 169259184700 | I78: -242853800 | J78: 166363137632 | K78: 0.9828898676 | L78: 154927527212 | M78: 6874562129 | N78: 126145983618 | O78: 0.7452829449 | P78: 0.8142257602
A79: 332000000000000 | B79: GASTOS DE OPERACION | C79: 317492682000 | D79: 0 | E79: 23763704174 | F79: 341256386174 | H79: 341256386174 | I79: 21808398112 | J79: 262180817165 | K79: 0.7682810573 | L79: 172434484014 | M79: 17549451834 | N79: 114987932098 | O79: 0.3369546674 | P79: 0.6668499793
A80: 332010000000000 | B80: GASTOS DE COMERCIALIZACION | C80: 122590042000 | D80: 0 | E80: 1920635986 | F80: 124510677986 | H80: 124510677986 | I80: 13741625390 | J80: 67298564768 | K80: 0.5405043636 | L80: 35021858059 | M80: 4117350242 | N80: 11758831199 | O80: 0.0944403435 | P80: 0.3357569201
A81: 332010100000000 | B81: COMPRA DE BIENES PARA LA VENTA | C81: 4000000000 | D81: 0 | E81: 0 | F81: 4000000000 | H81: 4000000000 | J81: 3999999580 | K81: 0.999999895
A82: 332010101000000 | B82: MEDIDORES | C82: 4000000000 | D82: 0 | E82: 0 | F82: 4000000000 | H82: 4000000000 | J82: 3999999580 | K82: 0.999999895
A83: 332010200000000 | B83: COMPRA DE SERVICIOS PARA LA VENTA | C83: 10638855000 | D83: 0 | E83: 1009779187 | F83: 11648634187 | H83: 11648634187 | I83: 6180000197 | J83: 10780115129 | K83: 0.9254402667 | L83: 2332535804 | M83: 42701820 | N83: 699489403 | O83: 0.06004904882 | P83: 0.2998836724
A84: 332010201000000 | B84: GESTION COMERCIAL | C84: 10638855000 | D84: 0 | E84: 381552483 | F84: 11020407483 | H84: 11020407483 | I84: 6180000197 | J84: 10151888425 | K84: 0.9211899325 | L84: 1946929282 | N84: 381645027 | O84: 0.03463075459 | P84: 0.1960240829
A85: 332010204000000 | B85: PROCESO DE ASEO | D85: 0 | E85: 628226704 | F85: 628226704 | H85: 628226704 | J85: 628226704 | K85: 1 | L85: 385606522 | M85: 42701820 | N85: 317844376 | O85: 0.5059389771 | P85: 0.8242712658
A86: 332010500000000 | B86: OTROS GASTOS DE COMERCIALIZACION | C86: 107951187000 | D86: 0 | E86: 910856799 | F86: 108862043799 | H86: 108862043799 | I86: 7561625193 | J86: 52518450059 | K86: 0.4824312334 | L86: 32689322255 | M86: 4074648422 | N86: 11059341796 | O86: 0.1015904296 | P86: 0.3383166439
A87: 332010501000000 | B87: MANTENIMIENTO Y MATERIALES OPERACION INFRAESTRUCTURA | C87: 102301187000 | D87: 0 | E87: 546159625 | F87: 102847346625 | H87: 102847346625 | I87: 7561625193 | J87: 52368450059 | K87: 0.5091862044 | L87: 32654364475 | M87: 4074648422 | N87: 11044291460 | O87: 0.1073852834 | P87: 0.338217927
A88: 332010502000000 | B88: COMERCIALIZACION DE ENERGIA | C88: 150000000 | F88: 150000000 | H88: 150000000 | J88: 150000000 | K88: 1 | L88: 34957780 | N88: 15050336 | O88: 0.1003355733 | P88: 0.4305289409
A89: 332010503000000 | B89: FONDO ATENCION EMERGENCIAS | C89: 4000000000 | D89: 0 | E89: 364697174 | F89: 4364697174 | H89: 4364697174
A90: 332010504000000 | B90: FONDO OBLIGACIONES CONTIGENTES | C90: 1500000000 | F90: 1500000000 | H90: 1500000000
A91: 332020000000000 | B91: GASTOS DE PRODUCCION | C91: 119951222000 | D91: 0 | E91: -927327053 | F91: 119023894947 | H91: 119023894947 | I91: 8257205022 | J91: 98576899723 | K91: 0.8282110056 | L91: 65883030935 | M91: 9100467117 | N91: 50061554815 | O91: 0.4206008788 | P91: 0.7598550659
A92: 332020100000000 | B92: INDUSTRIAL | C92: 119951222000 | D92: 0 | E92: -927327053 | F92: 119023894947 | H92: 119023894947 | I92: 8257205022 | J92: 98576899723 | K92: 0.8282110056 | L92: 65883030935 | M92: 9100467117 | N92: 50061554815 | O92: 0.4206008788 | P92: 0.7598550659
A93: 332020101000000 | B93: COMPRA AGUA EN BLOQUE | C93: 19933196000 | D93: 0 | E93: -7929670465 | F93: 12003525535 | H93: 12003525535 | J93: 6835026 | K93: 0.000569418208 | L93: 6835026 | N93: 6835026 | O93: 0.000569418208 | P93: 1
A94: 332020102000000 | B94: ENERGIA PARA BOMBEO | C94: 59707405000 | D94: 0 | E94: 800000000 | F94: 60507405000 | H94: 60507405000 | I94: 0 | J94: 59707405000 | K94: 0.9867784778 | L94: 37883737422 | M94: 5827535105 | N94: 33206581907 | O94: 0.5488019509 | P94: 0.8765392268
A95: 332020103000000 | B95: TASA POR USO DE AGUA | C95: 6740115000 | D95: 0 | E95: 2165757812 | F95: 8905872812 | H95: 8905872812 | I95: 2773548597 | J95: 5861403278 | K95: 0.6581503466 | L95: 8500431038 | M95: 1609104032 | N95: 4696206818 | O95: 0.5273157294 | P95: 0.552466904
A96: 332020109000000 | B96: PRODUCTOS QUIMICOS | C96: 33570506000 | D96: 0 | E96: 4036585600 | F96: 37607091600 | H96: 37607091600 | I96: 5483656425 | J96: 33001256419 | K96: 0.8775274826 | L96: 19492027449 | M96: 1663827980 | N96: 12151931064 | O96: 0.3231287118 | P96: 0.6234308409
A97: 332030000000000 | B97: CUENTAS POR PAGAR | C97: 74951418000 | D97: 0 | E97: 22770395241 | F97: 97721813241 | H97: 97721813241 | I97: -190432300 | J97: 96305352674 | K97: 0.9855051751 | L97: 71529595020 | M97: 4331634475 | N97: 53167546084 | O97: 0.5440704007 | P97: 0.7432943814
A98: 332030000000000 | B98: CUENTAS POR PAGAR | C98: 74951418000 | D98: 0 | E98: 22770395241 | F98: 97721813241 | H98: 97721813241 | I98: -190432300 | J98: 96305352674 | K98: 0.9855051751 | L98: 71529595020 | M98: 4331634475 | N98: 53167546084 | O98: 0.5440704007 | P98: 0.7432943814
A99: 333000000000000 | B99: SERVICIO DE LA DEUDA | C99: 153572347000 | D99: 0 | E99: 303368570 | F99: 153875715570 | H99: 153875715570 | I99: -932331049 | J99: 131889034595 | K99: 0.8571140294 | L99: 134848258890 | M99: 4423313951 | N99: 131889034595 | O99: 0.8571140294 | P99: 0.9780551538
A100: 333010000000000 | B100: DEUDA INTERNA | C100: 133333821000 | D100: 0 | E100: -4300000000 | F100: 129033821000 | H100: 129033821000 | I100: -1029853049 | J100: 126137407166 | K100: 0.9775530647 | L100: 127120888890 | M100: 4325791951 | N100: 126137407166 | O100: 0.9775530647 | P100: 0.9922634137
A101: 333010100000000 | B101: AMORTIZACION | C101: 77404000000 | D101: 0 | E101: 37028000000 | F101: 114432000000 | H101: 114432000000 | J101: 114430888888 | K101: 0.9999902902 | L101: 114432000000 | N101: 114430888888 | O101: 0.9999902902 | P101: 0.9999902902
A102: 333010200000000 | B102: INTERESES | C102: 55330821000 | D102: 0 | E102: -41328000000 | F102: 14002821000 | H102: 14002821000 | I102: -1029853049 | J102: 11706518278 | K102: 0.8360114207 | L102: 12688888890 | M102: 4325791951 | N102: 11706518278 | O102: 0.8360114207 | P102: 0.9225802495
A103: 333010300000000 | B103: COMISIONES Y OTROS | C103: 599000000 | F103: 599000000 | H103: 599000000
A104: 333030000000000 | B104: BONOS PENSIONALES | C104: 3427370000 | D104: 0 | E104: 4300000000 | F104: 7727370000 | H104: 7727370000 | I104: 97522000 | J104: 5751627429 | K104: 0.7443188859 | L104: 7727370000 | M104: 97522000 | N104: 5751627429 | O104: 0.7443188859 | P104: 0.7443188859
A105: 333030000000000 | B105: BONOS PENSIONALES | C105: 3427370000 | D105: 0 | E105: 4300000000 | F105: 7727370000 | H105: 7727370000 | I105: 97522000 | J105: 5751627429 | K105: 0.7443188859 | L105: 7727370000 | M105: 97522000 | N105: 5751627429 | O105: 0.7443188859 | P105: 0.7443188859
A106: 333040000000000 | B106: CUENTAS POR PAGAR | D106: 0 | E106: 2370570 | F106: 2370570 | H106: 2370570 | J106: 0 | K106: 0
A107: 333040000000000 | B107: CUENTAS POR PAGAR | D107: 0 | E107: 2370570 | F107: 2370570 | H107: 2370570 | J107: 0 | K107: 0
A108: 333050000000000 | B108: PASIVOS CONTINGENTES | C108: 16811156000 | D108: 0 | E108: 300998000 | F108: 17112154000 | H108: 17112154000
A109: 333050000000000 | B109: PASIVOS CONTINGENTES | C109: 16811156000 | D109: 0 | E109: 300998000 | F109: 17112154000 | H109: 17112154000
A110: 334000000000000 | B110: INVERSION | C110: 3417897390000 | D110: 0 | E110: 27815292738 | F110: 3445712682738 | H110: 3445712682738 | I110: 31636480196 | J110: 1372146279212 | K110: 0.3982184255 | L110: 712006171332 | M110: 40670170940 | N110: 332774478043 | O110: 0.09657638599 | P110: 0.4673758339
A111: 334010000000000 | B111: DIRECTA | C111: 1783511313000 | D111: -22003694856 | E111: 23639877843 | F111: 1807151190843 | H111: 1807151190843 | I111: 32462278745 | J111: 579501750002 | K111: 0.3206714264 | L111: 183884110560 | M111: 6066752932 | N111: 37946561623 | O111: 0.02099800051 | P111: 0.2063612865
A112: 334011500000000 | B112: BOGOTA MEJOR PARA TODOS | C112: 1783511313000 | D112: -22003694856 | E112: 23639877843 | F112: 1807151190843 | H112: 1807151190843 | I112: 32462278745 | J112: 579501750002 | K112: 0.3206714264 | L112: 183884110560 | M112: 6066752932 | N112: 37946561623 | O112: 0.02099800051 | P112: 0.2063612865
A113: 334011502000000 | B113: PILAR DEMOCRACIA URBANA | C113: 1590353907000 | D113: -37642432358 | E113: -1106554092 | F113: 1589247352908 | H113: 1589247352908 | I113: 23732899863 | J113: 519387655156 | K113: 0.3268136041 | L113: 132824718216 | M113: 5793442115 | N113: 31504023228 | O113: 0.01982323467 | P113: 0.2371849431
A114: 334011502130000 | B114: INFRAESTRUCTURA PARA EL DESARROLLO DEL HABITAT | C114: 1590353907000 | D114: -37642432358 | E114: -1106554092 | F114: 1589247352908 | H114: 1589247352908 | I114: 23732899863 | J114: 519387655156 | K114: 0.3268136041 | L114: 132824718216 | M114: 5793442115 | N114: 31504023228 | O114: 0.01982323467 | P114: 0.2371849431
A115: 334011502130133 | B115: INFRAESTRUCTURA PARA EL DESARROLLO DEL HABITAT | C115: 1590353907000 | D115: -37642432358 | E115: -1106554092 | F115: 1589247352908 | H115: 1589247352908 | I115: 23732899863 | J115: 519387655156 | K115: 0.3268136041 | L115: 132824718216 | M115: 5793442115 | N115: 31504023228 | O115: 0.01982323467 | P115: 0.2371849431
A116: 334011502130133000019 | B116: CONST. REDES LOCALES SERVICIO DE ALCANTARILLADO PLUVIAL | C116: 46423998000 | D116: 2364924891 | E116: 3339226162 | F116: 49763224162 | H116: 49763224162 | I116: 472751401 | J116: 9365694225 | K116: 0.1882051331 | L116: 4396321918 | M116: 232950325 | N116: 522946400 | O116: 0.01050869209 | P116: 0.1189508889
A117: 334011502130133000020 | B117: CONST. REDES LOCALES SERVICIO DE ALCANTARILLADO SANITARIO | C117: 67831563000 | D117: 0 | E117: -8572868017 | F117: 59258694983 | H117: 59258694983 | I117: 0 | J117: 5316212407 | K117: 0.08971193862 | L117: 3485430196 | M117: 166979164 | N117: 265899175 | O117: 0.004487091305 | P117: 0.07628876783
A118: 334011502130133000021 | B118: CONST. SISTEMA TRONCAL Y SECUNDARIO ALCANTARILLADO SANITARIO | C118: 15776019000 | D118: 0 | E118: 2284748687 | F118: 18060767687 | H118: 18060767687 | J118: 10535462707 | K118: 0.5833341577 | L118: 3798784022 | N118: 84158439 | O118: 0.00465973764 | P118: 0.0221540468
A119: 334011502130133000022 | B119: CONST. SISTEMA TRONCAL Y SECUNDARIO ALCANTARILLADO PLUVIAL | C119: 16877024000 | D119: 1011834972 | E119: 37613112438 | F119: 54490136438 | H119: 54490136438 | I119: 0 | J119: 46270095286 | K119: 0.8491462549 | L119: 24261055995 | M119: 1372851106 | N119: 10453690275 | O119: 0.1918455515 | P119: 0.4308835641
A120: 334011502130133000050 | B120: REN, REHAB O REP SIST ABAST, DIST MATRIZ Y RED LOCAL AC. | C120: 361732708000 | D120: -44577447000 | E120: -44270755203 | F120: 317461952797 | H120: 317461952797 | I120: 3150162268 | J120: 10838039340 | K120: 0.03413964806 | L120: 11669713364 | M120: 219625776 | N120: 4317121000 | O120: 0.0135988611 | P120: 0.3699423341
A121: 334011502130133000051 | B121: REN, REHAB O REP SIST TRONCAL SECUNDARIO Y LOCAL ALC. SANITA | C121: 150553278000 | D121: 1418171110 | E121: -19253221705 | F121: 131300056295 | H121: 131300056295 | I121: 17540826930 | J121: 87685606113 | K121: 0.6678261121 | L121: 12279416066 | M121: 762450394 | N121: 3088783741 | O121: 0.02352461856 | P121: 0.2515415818
A122: 334011502130133000052 | B122: REN REHAB O REP SIST TRONCAL SECUNDARIO Y LOCAL ALC. PLUVIAL | C122: 97926991000 | D122: 0 | E122: -485185539 | F122: 97441805461 | H122: 97441805461 | I122: 2289307453 | J122: 61123152034 | K122: 0.6272785253 | L122: 27731549500 | M122: 668974469 | N122: 2054132512 | O122: 0.02108060808 | P122: 0.07407204246
A123: 334011502130133000053 | B123: REN, REHAB O REP SIST TRONCAL, SECUNDARIO Y LOCAL ALC. COMBI | C123: 28895578000 | D123: 0 | E123: 1324836393 | F123: 30220414393 | H123: 30220414393 | I123: 0 | J123: 15763742149 | K123: 0.5216256119 | L123: 3800294822 | M123: 984465872 | N123: 1693238223 | O123: 0.0560296163 | P123: 0.4455544378
A124: 334011502130133000054 | B124: ACCIONES PARA EL SANEAMIENTO DEL RÍO BOGOTÁ | C124: 85540318000 | D124: 610662508 | E124: 8024474911 | F124: 93564792911 | H124: 93564792911 | I124: 17803465 | J124: 82091036505 | K124: 0.8773710062 | L124: 2258556953
A125: 334011502130133000068 | B125: CONST, REN, REHAB O REP REDES ASOCIADAS INFRAESTRUCTURA VIAL | C125: 75000000000 | D125: 0 | E125: 23220723538 | F125: 98220723538 | H125: 98220723538 | I125: 0 | J125: 737302000 | K125: 0.007506582862 | L125: 365935659 | M125: 49482000 | N125: 167200636 | O125: 0.001702294892 | P125: 0.4569126618
A126: 334011502130133000081 | B126: CORREDORES AMBIENTALES | C126: 354634309000 | D126: 57078930 | E126: 15584194442 | F126: 370218503442 | H126: 370218503442 | I126: 119397154 | J126: 84146216028 | K126: 0.2272879806 | L126: 17500742917 | M126: 137944837 | N126: 5640264338 | O126: 0.01523496067 | P126: 0.3222871375
A127: 334011502130133007334 | B127: CONST Y EXPANSIÓN DEL SISTEMA DE ABASTECIMIENTO Y MATRIZ AC. | C127: 249020376000 | D127: -268780863 | E127: -5626228940 | F127: 243394147060 | H127: 243394147060 | I127: 142651192 | J127: 100722415198 | K127: 0.413824311 | L127: 16105585413 | M127: 827111905 | N127: 2639679783 | O127: 0.01084528866 | P127: 0.1638984064
A128: 334011502130133007338 | B128: CONSTRUCCIÓN DE REDES LOCALES PARA EL SERVICIO DE ACUEDUCTO | C128: 40141745000 | D128: 1741123094 | E128: -14289611259 | F128: 25852133741 | H128: 25852133741 | I128: 0 | J128: 4792681164 | K128: 0.1853882241 | L128: 5171331391 | M128: 370606267 | N128: 576908706 | O128: 0.02231570948 | P128: 0.1115590285
A129: 334011506000000 | B129: EJE TRANSV. SOSTENIB. AMBIENTAL BASADA EFICIENCIA ENERGETICA | C129: 94382111000 | D129: 10078271598 | E129: 26707121921 | F129: 121089232921 | H129: 121089232921 | I129: 1957201693 | J129: 50697656787 | K129: 0.4186801383 | L129: 30250770059 | M129: 259310818 | N129: 6190226201 | O129: 0.05112119428 | P129: 0.2046303677
A130: 334011506380000 | B130: RECUPERACION Y MANEJO ESTRUCTURA ECOLOGICA PRINCIPAL | C130: 8151000000 | D130: 7441154887 | E130: 22731790344 | F130: 30882790344 | H130: 30882790344 | I130: 1781872669 | J130: 9794760907 | K130: 0.3171591944 | L130: 17128736278 | M130: 176966848 | N130: 4627138030 | O130: 0.1498290141 | P130: 0.2701389031
A131: 334011506380177 | B131: CONSOLIDACION DE LA ESTRUCTURA ECOLOGICA PRINCIPAL | C131: 8151000000 | D131: 7441154887 | E131: 22731790344 | F131: 30882790344 | H131: 30882790344 | I131: 1781872669 | J131: 9794760907 | K131: 0.3171591944 | L131: 17128736278 | M131: 176966848 | N131: 4627138030 | O131: 0.1498290141 | P131: 0.2701389031
A132: 334011506380177007341 | B132: 7341 - ADEC.HIDRAULICA RECUP.AMB.HUMED,QUEBRADAS,RIOS CUENCA | C132: 8151000000 | D132: 7441154887 | E132: 22731790344 | F132: 30882790344 | H132: 30882790344 | I132: 1781872669 | J132: 9794760907 | K132: 0.3171591944 | L132: 17128736278 | M132: 176966848 | N132: 4627138030 | O132: 0.1498290141 | P132: 0.2701389031
A133: 334011506380177007341 | B133: ADECUACIÓN HIDRÁULICA Y RECUPERACIÓN AMBIENTAL DE HUMEDALES, | C133: 8151000000 | D133: 7441154887 | E133: 22731790344 | F133: 30882790344 | H133: 30882790344 | I133: 1781872669 | J133: 9794760907 | K133: 0.3171591944 | L133: 17128736278 | M133: 176966848 | N133: 4627138030 | O133: 0.1498290141 | P133: 0.2701389031
A134: 334011506390000 | B134: AMBIENTE SANO PARA LA EQUIDAD Y DISFRUTE DEL CIUDADANO | C134: 86231111000 | D134: 2637116711 | E134: 3975331577 | F134: 90206442577 | H134: 90206442577 | I134: 175329024 | J134: 40902895880 | K134: 0.4534365253 | L134: 13122033781 | M134: 82343970 | N134: 1563088171 | O134: 0.0173278995 | P134: 0.1191193528
A135: 334011506390179 | B135: AMBIENTE SANO | C135: 86231111000 | D135: 2637116711 | E135: 3975331577 | F135: 90206442577 | H135: 90206442577 | I135: 175329024 | J135: 40902895880 | K135: 0.4534365253 | L135: 13122033781 | M135: 82343970 | N135: 1563088171 | O135: 0.0173278995 | P135: 0.1191193528
A136: 334011506390179000082 | B136: 0082 - PLAN DE SANEAMIENTO Y MANEJO DE VERTIMIENTOS | C136: 86231111000 | D136: 2637116711 | E136: 3975331577 | F136: 90206442577 | H136: 90206442577 | I136: 175329024 | J136: 40902895880 | K136: 0.4534365253 | L136: 13122033781 | M136: 82343970 | N136: 1563088171 | O136: 0.0173278995 | P136: 0.1191193528
A137: 334011506390179000082 | B137: PLAN DE SANEAMIENTO Y MANEJO DE VERTIMIENTOS | C137: 86231111000 | D137: 2637116711 | E137: 3975331577 | F137: 90206442577 | H137: 90206442577 | I137: 175329024 | J137: 40902895880 | K137: 0.4534365253 | L137: 13122033781 | M137: 82343970 | N137: 1563088171 | O137: 0.0173278995 | P137: 0.1191193528
A138: 334011507000000 | B138: EJE TRANSVERSAL GOBIERNO LEGITIMO, FORT. LOCAL Y EFICIENTE | C138: 98775295000 | D138: 5560465904 | E138: -1960689986 | F138: 96814605014 | H138: 96814605014 | I138: 6772177189 | J138: 9416438059 | K138: 0.09726257787 | L138: 20808622285 | M138: 13999999 | N138: 252312194 | O138: 0.00260613772 | P138: 0.01212536758
A139: 334011507420000 | B139: TRANSPARENCIA, GESTION PUBLICA Y SERVICIO A LA CIUDADANIA | C139: 98775295000 | D139: 5560465904 | E139: -1960689986 | F139: 96814605014 | H139: 96814605014 | I139: 6772177189 | J139: 9416438059 | K139: 0.09726257787 | L139: 20808622285 | M139: 13999999 | N139: 252312194 | O139: 0.00260613772 | P139: 0.01212536758
A140: 334011507420185 | B140: FORTALECIMIENTO A LA GESTION PUBLICA EFECTIVA Y EFICIENTE | C140: 98775295000 | D140: 5560465904 | E140: -1960689986 | F140: 96814605014 | H140: 96814605014 | I140: 6772177189 | J140: 9416438059 | K140: 0.09726257787 | L140: 20808622285 | M140: 13999999 | N140: 252312194 | O140: 0.00260613772 | P140: 0.01212536758
A141: 334011507420185000055 | B141: 0055 - FORTALECIMIENTO ADMINISTRATIVO Y OPERATIVO EMPRESARIA | C141: 98775295000 | D141: 5560465904 | E141: -1960689986 | F141: 96814605014 | H141: 96814605014 | I141: 6772177189 | J141: 9416438059 | K141: 0.09726257787 | L141: 20808622285 | M141: 13999999 | N141: 252312194 | O141: 0.00260613772 | P141: 0.01212536758
A142: 334011507420185000055 | B142: FORTALECIMIENTO ADMINISTRATIVO Y OPERATIVO EMPRESARIAL | C142: 98775295000 | D142: 5560465904 | E142: -1960689986 | F142: 96814605014 | H142: 96814605014 | I142: 6772177189 | J142: 9416438059 | K142: 0.09726257787 | L142: 20808622285 | M142: 13999999 | N142: 252312194 | O142: 0.00260613772 | P142: 0.01212536758
A143: 334020000000000 | B143: TRANSFERENCIAS PARA INVERSION | C143: 872741045000 | D143: 22003694856 | E143: 6662512845 | F143: 879403557845 | H143: 879403557845 | J143: 35105007046 | K143: 0.03991910964 | L143: 38270194622 | N143: 35105007046 | O143: 0.03991910964 | P143: 0.917293664
A144: 334020200000000 | B144: EMPRESAS DISTRITALES | C144: 872741045000 | D144: 22003694856 | E144: 6662512845 | F144: 879403557845 | H144: 879403557845 | J144: 35105007046 | K144: 0.03991910964 | L144: 38270194622 | N144: 35105007046 | O144: 0.03991910964 | P144: 0.917293664
A145: 334030000000000 | B145: CUENTAS POR PAGAR | C145: 761645032000 | D145: 0 | E145: -2487097950 | F145: 759157934050 | H145: 759157934050 | I145: -825798549 | J145: 757539522164 | K145: 0.9978681486 | L145: 489851866150 | M145: 34603418008 | N145: 259722909374 | O145: 0.3421197326 | P145: 0.5302070428
A146: 334030000000000 | B146: CUENTAS POR PAGAR | C146: 761645032000 | D146: 0 | E146: -2487097950 | F146: 759157934050 | H146: 759157934050 | I146: -825798549 | J146: 757539522164 | K146: 0.9978681486 | L146: 489851866150 | M146: 34603418008 | N146: 259722909374 | O146: 0.3421197326 | P146: 0.5302070428
A147: 340000000000000 | B147: DISPONIBILIDAD FINAL | C147: 238551564000 | D147: 0 | E147: 187868408437 | F147: 426419972437 | H147: 426419972437
A148: 340000000000000 | B148: DISPONIBILIDAD FINAL | C148: 238551564000 | D148: 0 | E148: 187868408437 | F148: 426419972437 | H148: 426419972437
